Organisation Name (A),Department (B),Service Cat Label (C ),Purpose of Spend (D),Expenditure CIPFA Sub Group (E ),Supplier (F),Supplier Reference (G),Pay Date (H),Transaction Number (I),Net Amount (J),Grant to VCSE? (K),Charity Number (L),Card Transaction (M),Irrecoverable VAT (N),
Pendle Borough Council,Operational Services,Transport Related Expense,3105,Tprt : Repairs : General,FST CONSUMABLES LIMITED,A0000004, 31/01/2019,OPS0293392,7.41,N,N/A,N,N/A,
Pendle Borough Council,Operational Services,Transport Related Expense,3105,Tprt : Repairs : General,FST CONSUMABLES LIMITED,A0000004, 31/01/2019,OPS0293392,21.72,N,N/A,N,N/A,
Pendle Borough Council,Operational Services,Transport Related Expense,3105,Tprt : Repairs : General,FST CONSUMABLES LIMITED,A0000004, 31/01/2019,OPS0293392,299.00,N,N/A,N,N/A,
Pendle Borough Council,Property Services,Premises Related Expense,2001,Bldgs : R & M : Day To Day,ATKINSON CLEANING SERVICES LTD,A0000010, 17/01/2019,EST0293061,110.00,N,N/A,N,N/A,
Pendle Borough Council,Property Services,Premises Related Expense,2001,Bldgs : R & M : Day To Day,ATKINSON CLEANING SERVICES LTD,A0000010, 17/01/2019,EST0293059,110.00,N,N/A,N,N/A,
Pendle Borough Council,Property Services,Premises Related Expense,2001,Bldgs : R & M : Day To Day,ATKINSON CLEANING SERVICES LTD,A0000010, 17/01/2019,EST0293060,110.00,N,N/A,N,N/A,
Pendle Borough Council,Property Services,Premises Related Expense,2001,Bldgs : R & M : Day To Day,ATKINSON CLEANING SERVICES LTD,A0000010, 17/01/2019,EST0293062,110.00,N,N/A,N,N/A,
Pendle Borough Council,Parks & Recreation Services,Transport Related Expense,3105,Tprt : Repairs : General,BALMERS GM LIMITED,A0000198, 24/01/2019,PCO0293194,36.21,N,N/A,N,N/A,
Pendle Borough Council,Parks & Recreation Services,Transport Related Expense,3105,Tprt : Repairs : General,BALMERS GM LIMITED,A0000198, 24/01/2019,PCO0293193,144.40,N,N/A,N,N/A,
Pendle Borough Council,Parks & Recreation Services,Supplies and Services,0002,Expenditure : Materials,BARNES JB LIMITED,A0000202, 10/01/2019,PCO0292936,2.25,N,N/A,N,N/A,
Pendle Borough Council,Parks & Recreation Services,Transport Related Expense,3105,Tprt : Repairs : General,BARNES JB LIMITED,A0000202, 10/01/2019,PCO0292960,40.95,N,N/A,N,N/A,
Pendle Borough Council,Parks & Recreation Services,Transport Related Expense,3105,Tprt : Repairs : General,BEARING FACTORS,A0000205, 10/01/2019,PCO0292945,45.00,N,N/A,N,N/A,
Pendle Borough Council,Parks & Recreation Services,Premises Related Expense,2101,Grounds : R & M : Day to Day : Routine,BROXAP LIMITED,A0000236, 10/01/2019,PCO0293014,505.00,N,N/A,N,N/A,
Pendle Borough Council,Parks & Recreation Services,Premises Related Expense,2101,Grounds : R & M : Day to Day : Routine,BROXAP LIMITED,A0000236, 31/01/2019,PCO0293467,430.00,N,N/A,N,N/A,
Pendle Borough Council,Parks & Recreation Services,Premises Related Expense,2101,Grounds : R & M : Day to Day : Routine,BROXAP LIMITED,A0000236, 31/01/2019,PCO0293467,215.00,N,N/A,N,N/A,
Pendle Borough Council,Parks & Recreation Services,Premises Related Expense,2101,Grounds : R & M : Day to Day : Routine,BROXAP LIMITED,A0000236, 31/01/2019,PCO0293467,215.00,N,N/A,N,N/A,
Pendle Borough Council,Parks & Recreation Services,Transport Related Expense,3105,Tprt : Repairs : General,BOC GASES LTD,A0000386, 10/01/2019,PCO0292901,18.65,N,N/A,N,N/A,
Pendle Borough Council,Parks & Recreation Services,Premises Related Expense,2101,Grounds : R & M : Day to Day : Routine,CB EXCAVATORS LTD,A0000396, 24/01/2019,PCO0293185,"4,371.00",N,N/A,N,N/A,
Pendle Borough Council,Engineering & Special Projects,Premises Related Expense,2101,Grounds : R & M : Day to Day : Routine,CB EXCAVATORS LTD,A0000396, 17/01/2019,HED0293112,400.00,N,N/A,N,N/A,
Pendle Borough Council,Engineering & Special Projects,Capital Costs,CD14,Capital : Payments,CB EXCAVATORS LTD,A0000396, 24/01/2019,HED0293166,"4,288.00",N,N/A,N,N/A,
Pendle Borough Council,Engineering & Special Projects,Capital Costs,CD14,Capital : Payments,3B SYSTEMS LTD,A0000400, 10/01/2019,HED0292845,915.00,N,N/A,N,N/A,
Pendle Borough Council,Property Services,Premises Related Expense,2001,Bldgs : R & M : Day To Day,GEORGE BOOCOCK DECORATORS LTD,A0000427, 10/01/2019,EST0292925,592.00,N,N/A,N,N/A,
Pendle Borough Council,Property Services,Capital Costs,CD14,Capital : Payments,GEORGE BOOCOCK DECORATORS LTD,A0000427, 10/01/2019,EST0292924,329.00,N,N/A,N,N/A,
Pendle Borough Council,Property Services,Premises Related Expense,2001,Bldgs : R & M : Day To Day,BARROWFORD SAFE & LOCK SERV LT,A0000458, 24/01/2019,EST0293197,111.60,N,N/A,N,N/A,
Pendle Borough Council,Housing Regeneration Services,Supplies and Services,4705,Other Expenses,BARROWFORD SAFE & LOCK SERV LT,A0000458, 17/01/2019,HMR0293099,41.67,N,N/A,N,N/A,
Pendle Borough Council,Property Services,Capital Costs,CD14,Capital : Payments,BARROWFORD SAFE & LOCK SERV LT,A0000458, 24/01/2019,EST0293196,25.83,N,N/A,N,N/A,
Pendle Borough Council,Parks & Recreation Services,Supplies and Services,0002,Expenditure : Materials,BARROWFORD SAFE & LOCK & BB LOCKSMITHS,A0000510, 24/01/2019,PCO0293179,11.68,N,N/A,N,N/A,
Pendle Borough Council,Parks & Recreation Services,Premises Related Expense,2101,Grounds : R & M : Day to Day : Routine,BARROWFORD SAFE & LOCK & BB LOCKSMITHS,A0000510, 24/01/2019,PCO0293179,5.84,N,N/A,N,N/A,
Pendle Borough Council,Operational Services,Supplies and Services,4007,Sub-Contractors,BARROWFORD SAFE & LOCK & BB LOCKSMITHS,A0000510, 10/01/2019,OPS0292848,135.88,N,N/A,N,N/A,
Pendle Borough Council,Economic Development & Tourism,Supplies and Services,4707,Miscellaneous : Other,R J CLOUGH & SON LTD,A0000567, 24/01/2019,REG0293266,228.23,N,N/A,N,N/A,
Pendle Borough Council,Housing Regeneration Services,Supplies and Services,4705,Other Expenses,CAVALIER TAXIS,A0000638, 24/01/2019,HMR0293297,20.00,N,N/A,N,N/A,
Pendle Borough Council,Housing Regeneration Services,Supplies and Services,4705,Other Expenses,CAVALIER TAXIS,A0000638, 24/01/2019,HMR0293298,30.00,N,N/A,N,N/A,
Pendle Borough Council,Housing Regeneration Services,Transfer Payments,6104,Storage & Homelessness prevention,CAVALIER TAXIS,A0000638, 10/01/2019,HMR0293005,40.00,N,N/A,N,N/A,
Pendle Borough Council,Parks & Recreation Services,Indirect Employee Expenses,1211,Training,CRAVEN COLLEGE,A0000735, 10/01/2019,PCO0292961,750.00,N,N/A,N,N/A,
Pendle Borough Council,Property Services,Premises Related Expense,2001,Bldgs : R & M : Day To Day,J DRIVER LTD,A0000884, 24/01/2019,EST0293201,221.50,N,N/A,N,N/A,
Pendle Borough Council,Property Services,Premises Related Expense,2001,Bldgs : R & M : Day To Day,J DRIVER LTD,A0000884, 24/01/2019,EST0293201,128.02,N,N/A,N,N/A,
Pendle Borough Council,Property Services,Premises Related Expense,2001,Bldgs : R & M : Day To Day,J DRIVER LTD,A0000884, 24/01/2019,EST0293201,221.50,N,N/A,N,N/A,
Pendle Borough Council,Property Services,Premises Related Expense,2001,Bldgs : R & M : Day To Day,J DRIVER LTD,A0000884, 24/01/2019,EST0293201,149.50,N,N/A,N,N/A,
Pendle Borough Council,Property Services,Premises Related Expense,2001,Bldgs : R & M : Day To Day,J DRIVER LTD,A0000884, 24/01/2019,EST0293201,236.90,N,N/A,N,N/A,
Pendle Borough Council,Property Services,Premises Related Expense,2001,Bldgs : R & M : Day To Day,J DRIVER LTD,A0000884, 24/01/2019,EST0293201,33.00,N,N/A,N,N/A,
Pendle Borough Council,Property Services,Premises Related Expense,2001,Bldgs : R & M : Day To Day,J DRIVER LTD,A0000884, 24/01/2019,EST0293201,34.10,N,N/A,N,N/A,
Pendle Borough Council,Property Services,Premises Related Expense,2001,Bldgs : R & M : Day To Day,J DRIVER LTD,A0000884, 24/01/2019,EST0293201,150.70,N,N/A,N,N/A,
Pendle Borough Council,Property Services,Premises Related Expense,2001,Bldgs : R & M : Day To Day,J DRIVER LTD,A0000884, 24/01/2019,EST0293201,"1,332.28",N,N/A,N,N/A,
Pendle Borough Council,Property Services,Premises Related Expense,2001,Bldgs : R & M : Day To Day,J DRIVER LTD,A0000884, 24/01/2019,EST0293201,485.80,N,N/A,N,N/A,
Pendle Borough Council,Property Services,Capital Costs,CD14,Capital : Payments,J DRIVER LTD,A0000884, 24/01/2019,EST0293201,"4,010.00",N,N/A,N,N/A,
Pendle Borough Council,Parks & Recreation Services,Supplies and Services,4201,Protective Clothing,ENGINEERING & FOUNDRY SUPPLIES,A0001002, 31/01/2019,PCO0293437,22.50,N,N/A,N,N/A,
Pendle Borough Council,Parks & Recreation Services,Supplies and Services,4201,Protective Clothing,ENGINEERING & FOUNDRY SUPPLIES,A0001002, 31/01/2019,PCO0293455,25.00,N,N/A,N,N/A,
Pendle Borough Council,Parks & Recreation Services,Supplies and Services,4201,Protective Clothing,ENGINEERING & FOUNDRY SUPPLIES,A0001002, 31/01/2019,PCO0293453,36.20,N,N/A,N,N/A,
Pendle Borough Council,Parks & Recreation Services,Supplies and Services,4201,Protective Clothing,ENGINEERING & FOUNDRY SUPPLIES,A0001002, 31/01/2019,PCO0293437,44.58,N,N/A,N,N/A,
Pendle Borough Council,Parks & Recreation Services,Supplies and Services,4201,Protective Clothing,ENGINEERING & FOUNDRY SUPPLIES,A0001002, 31/01/2019,PCO0293450,66.15,N,N/A,N,N/A,
Pendle Borough Council,Parks & Recreation Services,Supplies and Services,4201,Protective Clothing,ENGINEERING & FOUNDRY SUPPLIES,A0001002, 31/01/2019,PCO0293437,85.50,N,N/A,N,N/A,
Pendle Borough Council,Parks & Recreation Services,Supplies and Services,4201,Protective Clothing,ENGINEERING & FOUNDRY SUPPLIES,A0001002, 31/01/2019,PCO0293434,87.50,N,N/A,N,N/A,
Pendle Borough Council,Parks & Recreation Services,Supplies and Services,4201,Protective Clothing,ENGINEERING & FOUNDRY SUPPLIES,A0001002, 31/01/2019,PCO0293432,91.20,N,N/A,N,N/A,
Pendle Borough Council,Parks & Recreation Services,Supplies and Services,4201,Protective Clothing,ENGINEERING & FOUNDRY SUPPLIES,A0001002, 31/01/2019,PCO0293432,187.50,N,N/A,N,N/A,
Pendle Borough Council,Parks & Recreation Services,Supplies and Services,4201,Protective Clothing,ENGINEERING & FOUNDRY SUPPLIES,A0001002, 31/01/2019,PCO0293436,307.50,N,N/A,N,N/A,
Pendle Borough Council,Economic Development & Tourism,Supplies and Services,4201,Protective Clothing,ENGINEERING & FOUNDRY SUPPLIES,A0001002, 31/01/2019,REG0293406,25.00,N,N/A,N,N/A,
Pendle Borough Council,Operational Services,,PJ01,Stock : Purchases,ENGINEERING & FOUNDRY SUPPLIES,A0001002, 24/01/2019,OPS0293171,3.75,N,N/A,N,N/A,
Pendle Borough Council,Operational Services,,PJ01,Stock : Purchases,ENGINEERING & FOUNDRY SUPPLIES,A0001002, 10/01/2019,OPS0292866,4.40,N,N/A,N,N/A,
Pendle Borough Council,Operational Services,,PJ01,Stock : Purchases,ENGINEERING & FOUNDRY SUPPLIES,A0001002, 31/01/2019,OPS0293395,6.40,N,N/A,N,N/A,
Pendle Borough Council,Operational Services,,PJ01,Stock : Purchases,ENGINEERING & FOUNDRY SUPPLIES,A0001002, 10/01/2019,OPS0292850,11.49,N,N/A,N,N/A,
Pendle Borough Council,Operational Services,,PJ01,Stock : Purchases,ENGINEERING & FOUNDRY SUPPLIES,A0001002, 24/01/2019,OPS0293171,14.25,N,N/A,N,N/A,
Pendle Borough Council,Operational Services,,PJ01,Stock : Purchases,ENGINEERING & FOUNDRY SUPPLIES,A0001002, 10/01/2019,OPS0292849,14.40,N,N/A,N,N/A,
Pendle Borough Council,Operational Services,,PJ01,Stock : Purchases,ENGINEERING & FOUNDRY SUPPLIES,A0001002, 10/01/2019,OPS0292847,14.50,N,N/A,N,N/A,
Pendle Borough Council,Operational Services,,PJ01,Stock : Purchases,ENGINEERING & FOUNDRY SUPPLIES,A0001002, 17/01/2019,OPS0293122,18.96,N,N/A,N,N/A,
Pendle Borough Council,Operational Services,,PJ01,Stock : Purchases,ENGINEERING & FOUNDRY SUPPLIES,A0001002, 24/01/2019,OPS0293171,21.45,N,N/A,N,N/A,
Pendle Borough Council,Operational Services,,PJ01,Stock : Purchases,ENGINEERING & FOUNDRY SUPPLIES,A0001002, 31/01/2019,OPS0293395,22.29,N,N/A,N,N/A,
Pendle Borough Council,Operational Services,,PJ01,Stock : Purchases,ENGINEERING & FOUNDRY SUPPLIES,A0001002, 10/01/2019,OPS0292849,28.25,N,N/A,N,N/A,
Pendle Borough Council,Operational Services,,PJ01,Stock : Purchases,ENGINEERING & FOUNDRY SUPPLIES,A0001002, 31/01/2019,OPS0293395,32.50,N,N/A,N,N/A,
Pendle Borough Council,Operational Services,,PJ01,Stock : Purchases,ENGINEERING & FOUNDRY SUPPLIES,A0001002, 31/01/2019,OPS0293445,38.25,N,N/A,N,N/A,
Pendle Borough Council,Operational Services,,PJ01,Stock : Purchases,ENGINEERING & FOUNDRY SUPPLIES,A0001002, 10/01/2019,OPS0292870,40.95,N,N/A,N,N/A,
Pendle Borough Council,Operational Services,,PJ01,Stock : Purchases,ENGINEERING & FOUNDRY SUPPLIES,A0001002, 31/01/2019,OPS0293395,45.60,N,N/A,N,N/A,
Pendle Borough Council,Operational Services,,PJ01,Stock : Purchases,ENGINEERING & FOUNDRY SUPPLIES,A0001002, 24/01/2019,OPS0293171,46.95,N,N/A,N,N/A,
Pendle Borough Council,Operational Services,,PJ01,Stock : Purchases,ENGINEERING & FOUNDRY SUPPLIES,A0001002, 10/01/2019,OPS0292869,48.03,N,N/A,N,N/A,
Pendle Borough Council,Operational Services,,PJ01,Stock : Purchases,ENGINEERING & FOUNDRY SUPPLIES,A0001002, 24/01/2019,OPS0293171,58.25,N,N/A,N,N/A,
Pendle Borough Council,Operational Services,,PJ01,Stock : Purchases,ENGINEERING & FOUNDRY SUPPLIES,A0001002, 24/01/2019,OPS0293172,75.96,N,N/A,N,N/A,
Pendle Borough Council,Operational Services,,PJ01,Stock : Purchases,ENGINEERING & FOUNDRY SUPPLIES,A0001002, 10/01/2019,OPS0292850,90.00,N,N/A,N,N/A,
Pendle Borough Council,Operational Services,,PJ01,Stock : Purchases,ENGINEERING & FOUNDRY SUPPLIES,A0001002, 17/01/2019,OPS0293107,90.00,N,N/A,N,N/A,
Pendle Borough Council,Operational Services,,PJ01,Stock : Purchases,ENGINEERING & FOUNDRY SUPPLIES,A0001002, 17/01/2019,OPS0293123,90.00,N,N/A,N,N/A,
Pendle Borough Council,Operational Services,,PJ01,Stock : Purchases,ENGINEERING & FOUNDRY SUPPLIES,A0001002, 10/01/2019,OPS0292850,91.20,N,N/A,N,N/A,
Pendle Borough Council,Operational Services,,PJ01,Stock : Purchases,ENGINEERING & FOUNDRY SUPPLIES,A0001002, 31/01/2019,OPS0293395,91.20,N,N/A,N,N/A,
Pendle Borough Council,Operational Services,,PJ01,Stock : Purchases,ENGINEERING & FOUNDRY SUPPLIES,A0001002, 10/01/2019,OPS0292850,151.92,N,N/A,N,N/A,
Pendle Borough Council,Operational Services,,PJ01,Stock : Purchases,ENGINEERING & FOUNDRY SUPPLIES,A0001002, 17/01/2019,OPS0293123,164.16,N,N/A,N,N/A,
Pendle Borough Council,Operational Services,,PJ01,Stock : Purchases,ENGINEERING & FOUNDRY SUPPLIES,A0001002, 31/01/2019,OPS0293395,180.00,N,N/A,N,N/A,
Pendle Borough Council,Operational Services,,PJ01,Stock : Purchases,ENGINEERING & FOUNDRY SUPPLIES,A0001002, 17/01/2019,OPS0293107,600.00,N,N/A,N,N/A,
Pendle Borough Council,Engineering & Special Projects,Capital Costs,CD14,Capital : Payments,EARBY TOWN COUNCIL,A0001004, 31/01/2019,HED0293358,300.00,N,N/A,N,N/A,
Pendle Borough Council,Operational Services,Transport Related Expense,3105,Tprt : Repairs : General,FREIGHT TRANSPORT ASSOCIATION,A0001124, 10/01/2019,OPS0292853,54.80,N,N/A,N,N/A,
Pendle Borough Council,Parks & Recreation Services,Transport Related Expense,3105,Tprt : Repairs : General,GIBSONS GARDEN MACHINERY LTD,A0001201, 31/01/2019,PCO4005969,-82.96,N,N/A,N,N/A,
Pendle Borough Council,Parks & Recreation Services,Transport Related Expense,3105,Tprt : Repairs : General,GIBSONS GARDEN MACHINERY LTD,A0001201, 31/01/2019,PCO4005978,-35.22,N,N/A,N,N/A,
Pendle Borough Council,Parks & Recreation Services,Transport Related Expense,3105,Tprt : Repairs : General,GIBSONS GARDEN MACHINERY LTD,A0001201, 31/01/2019,PCO0293282,1.28,N,N/A,N,N/A,
Pendle Borough Council,Parks & Recreation Services,Transport Related Expense,3105,Tprt : Repairs : General,GIBSONS GARDEN MACHINERY LTD,A0001201, 31/01/2019,PCO0293282,2.12,N,N/A,N,N/A,
Pendle Borough Council,Parks & Recreation Services,Transport Related Expense,3105,Tprt : Repairs : General,GIBSONS GARDEN MACHINERY LTD,A0001201, 31/01/2019,PCO0293424,3.96,N,N/A,N,N/A,
Pendle Borough Council,Parks & Recreation Services,Transport Related Expense,3105,Tprt : Repairs : General,GIBSONS GARDEN MACHINERY LTD,A0001201, 31/01/2019,PCO0293424,5.52,N,N/A,N,N/A,
Pendle Borough Council,Parks & Recreation Services,Transport Related Expense,3105,Tprt : Repairs : General,GIBSONS GARDEN MACHINERY LTD,A0001201, 31/01/2019,PCO0293424,21.20,N,N/A,N,N/A,
Pendle Borough Council,Parks & Recreation Services,Transport Related Expense,3105,Tprt : Repairs : General,GIBSONS GARDEN MACHINERY LTD,A0001201, 31/01/2019,PCO0293282,31.82,N,N/A,N,N/A,
Pendle Borough Council,Parks & Recreation Services,Transport Related Expense,3105,Tprt : Repairs : General,GIBSONS GARDEN MACHINERY LTD,A0001201, 31/01/2019,PCO0292468,55.22,N,N/A,N,N/A,
Pendle Borough Council,Democratic & Legal Services,Supplies and Services,4614,Mayoral Expenses,GOING DUTCH FLORIST,A0001216, 31/01/2019,DAL0293442,12.50,N,N/A,N,N/A,
Pendle Borough Council,Democratic & Legal Services,Supplies and Services,4614,Mayoral Expenses,GOING DUTCH FLORIST,A0001216, 31/01/2019,DAL0293440,16.25,N,N/A,N,N/A,
Pendle Borough Council,Operational Services,Supplies and Services,4705,Other Expenses,JEWSON LIMITED,A0001323, 17/01/2019,OPS0293108,99.69,N,N/A,N,N/A,
Pendle Borough Council,Economic Development & Tourism,Supplies and Services,4707,Miscellaneous : Other,JEWSON LIMITED,A0001323, 31/01/2019,REG0293372,22.30,N,N/A,N,N/A,
Pendle Borough Council,Economic Development & Tourism,Supplies and Services,4707,Miscellaneous : Other,JEWSON LIMITED,A0001323, 31/01/2019,REG0293374,25.10,N,N/A,N,N/A,
Pendle Borough Council,Economic Development & Tourism,Supplies and Services,4707,Miscellaneous : Other,JEWSON LIMITED,A0001323, 10/01/2019,REG0292988,46.58,N,N/A,N,N/A,
Pendle Borough Council,Economic Development & Tourism,Supplies and Services,4707,Miscellaneous : Other,JEWSON LIMITED,A0001323, 31/01/2019,REG0293373,93.17,N,N/A,N,N/A,
Pendle Borough Council,Parks & Recreation Services,Premises Related Expense,2001,Bldgs : R & M : Day To Day,J HARGREAVES,A0001359, 17/01/2019,PCO0293089,25.00,N,N/A,N,N/A,
Pendle Borough Council,Parks & Recreation Services,Supplies and Services,0002,Expenditure : Materials,LANLEE SUPPLIES LIMITED,A0001672, 31/01/2019,PCO0293451,5.76,N,N/A,N,N/A,
Pendle Borough Council,Parks & Recreation Services,Supplies and Services,0002,Expenditure : Materials,LANLEE SUPPLIES LIMITED,A0001672, 10/01/2019,PCO0292944,37.14,N,N/A,N,N/A,
Pendle Borough Council,Parks & Recreation Services,Premises Related Expense,2001,Bldgs : R & M : Day To Day,LANLEE SUPPLIES LIMITED,A0001672, 31/01/2019,PCO0293438,11.67,N,N/A,N,N/A,
Pendle Borough Council,Parks & Recreation Services,Premises Related Expense,2001,Bldgs : R & M : Day To Day,LANLEE SUPPLIES LIMITED,A0001672, 31/01/2019,PCO0293438,12.40,N,N/A,N,N/A,
Pendle Borough Council,Operational Services,Supplies and Services,4004,EFM Materials,LANLEE SUPPLIES LIMITED,A0001672, 10/01/2019,OPS0292977,82.30,N,N/A,N,N/A,
Pendle Borough Council,Economic Development & Tourism,Supplies and Services,4707,Miscellaneous : Other,LANLEE SUPPLIES LIMITED,A0001672, 31/01/2019,REG0293369,10.73,N,N/A,N,N/A,
Pendle Borough Council,Economic Development & Tourism,Supplies and Services,4707,Miscellaneous : Other,LANLEE SUPPLIES LIMITED,A0001672, 24/01/2019,REG0293169,20.17,N,N/A,N,N/A,
Pendle Borough Council,Economic Development & Tourism,Supplies and Services,4707,Miscellaneous : Other,LANLEE SUPPLIES LIMITED,A0001672, 24/01/2019,REG0293168,22.37,N,N/A,N,N/A,
Pendle Borough Council,Economic Development & Tourism,Supplies and Services,4707,Miscellaneous : Other,LANLEE SUPPLIES LIMITED,A0001672, 10/01/2019,REG0292991,25.32,N,N/A,N,N/A,
Pendle Borough Council,Economic Development & Tourism,Supplies and Services,4707,Miscellaneous : Other,LANLEE SUPPLIES LIMITED,A0001672, 10/01/2019,REG0292989,41.32,N,N/A,N,N/A,
Pendle Borough Council,Economic Development & Tourism,Supplies and Services,4707,Miscellaneous : Other,LANLEE SUPPLIES LIMITED,A0001672, 31/01/2019,REG0293370,53.65,N,N/A,N,N/A,
Pendle Borough Council,Economic Development & Tourism,Supplies and Services,4707,Miscellaneous : Other,LANLEE SUPPLIES LIMITED,A0001672, 10/01/2019,REG0292990,80.06,N,N/A,N,N/A,
Pendle Borough Council,Economic Development & Tourism,Supplies and Services,4707,Miscellaneous : Other,LANLEE SUPPLIES LIMITED,A0001672, 10/01/2019,REG0292992,189.32,N,N/A,N,N/A,
Pendle Borough Council,Parks & Recreation Services,Supplies and Services,0002,Expenditure : Materials,LBS WORLDWIDE LIMITED,A0001673, 10/01/2019,PCO0292949,55.86,N,N/A,N,N/A,
Pendle Borough Council,Parks & Recreation Services,Indirect Employee Expenses,1211,Training,DICK LEIGH,A0001675, 10/01/2019,PCO0292947,211.87,N,N/A,N,N/A,
Pendle Borough Council,Parks & Recreation Services,Indirect Employee Expenses,1211,Training,DICK LEIGH,A0001675, 10/01/2019,PCO0292947,233.75,N,N/A,N,N/A,
Pendle Borough Council,Parks & Recreation Services,Indirect Employee Expenses,1211,Training,DICK LEIGH,A0001675, 10/01/2019,PCO0292947,444.38,N,N/A,N,N/A,
Pendle Borough Council,Parks & Recreation Services,Transport Related Expense,3105,Tprt : Repairs : General,DICK LEIGH,A0001675, 24/01/2019,PCO0293184,4.40,N,N/A,N,N/A,
Pendle Borough Council,Parks & Recreation Services,Transport Related Expense,3105,Tprt : Repairs : General,DICK LEIGH,A0001675, 24/01/2019,PCO0293184,16.28,N,N/A,N,N/A,
Pendle Borough Council,Parks & Recreation Services,Transport Related Expense,3105,Tprt : Repairs : General,DICK LEIGH,A0001675, 31/01/2019,PCO0293431,16.50,N,N/A,N,N/A,
Pendle Borough Council,Parks & Recreation Services,Transport Related Expense,3105,Tprt : Repairs : General,DICK LEIGH,A0001675, 31/01/2019,PCO0293431,21.24,N,N/A,N,N/A,
Pendle Borough Council,Parks & Recreation Services,Transport Related Expense,3105,Tprt : Repairs : General,DICK LEIGH,A0001675, 31/01/2019,PCO0293435,31.74,N,N/A,N,N/A,
Pendle Borough Council,Parks & Recreation Services,Transport Related Expense,3105,Tprt : Repairs : General,DICK LEIGH,A0001675, 24/01/2019,PCO0293184,61.54,N,N/A,N,N/A,
Pendle Borough Council,Parks & Recreation Services,Transport Related Expense,3105,Tprt : Repairs : General,DICK LEIGH,A0001675, 31/01/2019,PCO0293468,136.88,N,N/A,N,N/A,
Pendle Borough Council,Parks & Recreation Services,Transport Related Expense,3105,Tprt : Repairs : General,DICK LEIGH,A0001675, 31/01/2019,PCO0293464,146.66,N,N/A,N,N/A,
Pendle Borough Council,Parks & Recreation Services,Transport Related Expense,3105,Tprt : Repairs : General,DICK LEIGH,A0001675, 31/01/2019,PCO0293433,5.46,N,N/A,N,N/A,
Pendle Borough Council,Parks & Recreation Services,Transport Related Expense,3105,Tprt : Repairs : General,DICK LEIGH,A0001675, 31/01/2019,PCO0293435,16.97,N,N/A,N,N/A,
Pendle Borough Council,Parks & Recreation Services,Transport Related Expense,3105,Tprt : Repairs : General,DICK LEIGH,A0001675, 31/01/2019,PCO0293435,54.50,N,N/A,N,N/A,
Pendle Borough Council,Parks & Recreation Services,Transport Related Expense,3105,Tprt : Repairs : General,DICK LEIGH,A0001675, 24/01/2019,PCO0293181,40.50,N,N/A,N,N/A,
Pendle Borough Council,Parks & Recreation Services,Transport Related Expense,3105,Tprt : Repairs : General,DICK LEIGH,A0001675, 24/01/2019,PCO0293182,39.83,N,N/A,N,N/A,
Pendle Borough Council,Parks & Recreation Services,Transport Related Expense,3105,Tprt : Repairs : General,DICK LEIGH,A0001675, 31/01/2019,PCO0293426,40.80,N,N/A,N,N/A,
Pendle Borough Council,Parks & Recreation Services,Transport Related Expense,3105,Tprt : Repairs : General,DICK LEIGH,A0001675, 24/01/2019,PCO0293192,45.53,N,N/A,N,N/A,
Pendle Borough Council,Parks & Recreation Services,Transport Related Expense,3202,Diesel Oil,DICK LEIGH,A0001675, 24/01/2019,PCO0293181,28.00,N,N/A,N,N/A,
Pendle Borough Council,Parks & Recreation Services,Supplies and Services,4201,Protective Clothing,DICK LEIGH,A0001675, 10/01/2019,PCO0292859,13.50,N,N/A,N,N/A,
Pendle Borough Council,Parks & Recreation Services,Supplies and Services,4201,Protective Clothing,DICK LEIGH,A0001675, 10/01/2019,PCO0292859,14.25,N,N/A,N,N/A,
Pendle Borough Council,Parks & Recreation Services,Supplies and Services,4201,Protective Clothing,DICK LEIGH,A0001675, 10/01/2019,PCO0292859,88.50,N,N/A,N,N/A,
Pendle Borough Council,Parks & Recreation Services,Capital Costs,CD14,Capital : Payments,DICK LEIGH,A0001675, 31/01/2019,PCO0293472,"1,012.50",N,N/A,N,N/A,
Pendle Borough Council,Operational Services,Premises Related Expense,2602,Trade Refuse Charges,LANCASHIRE COUNTY COUNCIL,A0001690, 31/01/2019,OPS0293390,"85,352.60",N,N/A,N,N/A,
Pendle Borough Council,Democratic & Legal Services,Supplies and Services,4404,Search Fees,LANCASHIRE COUNTY COUNCIL,A0001690, 17/01/2019,DAL0293105,321.00,N,N/A,N,N/A,
Pendle Borough Council,Housing Regeneration Services,Supplies and Services,4737,Grant Funding,LANCASHIRE COUNTY COUNCIL,A0001690, 10/01/2019,HMR0292840,"2,580.37",N,N/A,N,N/A,
Pendle Borough Council,Housing Regeneration Services,Capital Costs,CH22,Ren Grant : 1996 Act,LANCASHIRE COUNTY COUNCIL,A0001690, 17/01/2019,HMR0293128,"3,350.00",N,N/A,N,N/A,
Pendle Borough Council,Housing Regeneration Services,Capital Costs,CH22,Ren Grant : 1996 Act,LANCASHIRE COUNTY COUNCIL,A0001690, 24/01/2019,HMR0293206,"14,164.00",N,N/A,N,N/A,
Pendle Borough Council,Parks & Recreation Services,Premises Related Expense,2001,Bldgs : R & M : Day To Day,R & K LATHAM & SON,A0001718, 24/01/2019,PCO0293189,555.00,N,N/A,N,N/A,
Pendle Borough Council,Parks & Recreation Services,Premises Related Expense,2101,Grounds : R & M : Day to Day : Routine,R & K LATHAM & SON,A0001718, 24/01/2019,PCO0293189,275.00,N,N/A,N,N/A,
Pendle Borough Council,Operational Services,Premises Related Expense,2101,Grounds : R & M : Day to Day : Routine,JOHN MACADAM & SON (RESCUE) LTD,A0001846, 31/01/2019,OPS0293457,45.00,N,N/A,N,N/A,
Pendle Borough Council,Operational Services,Premises Related Expense,2101,Grounds : R & M : Day to Day : Routine,JOHN MACADAM & SON (RESCUE) LTD,A0001846, 17/01/2019,OPS0293085,45.00,N,N/A,N,N/A,
Pendle Borough Council,Operational Services,Premises Related Expense,2101,Grounds : R & M : Day to Day : Routine,JOHN MACADAM & SON (RESCUE) LTD,A0001846, 17/01/2019,OPS0293086,45.00,N,N/A,N,N/A,
Pendle Borough Council,Operational Services,Premises Related Expense,2101,Grounds : R & M : Day to Day : Routine,JOHN MACADAM & SON (RESCUE) LTD,A0001846, 31/01/2019,OPS0293458,45.00,N,N/A,N,N/A,
Pendle Borough Council,Operational Services,Premises Related Expense,2101,Grounds : R & M : Day to Day : Routine,JOHN MACADAM & SON (RESCUE) LTD,A0001846, 17/01/2019,OPS0293083,45.00,N,N/A,N,N/A,
Pendle Borough Council,Operational Services,Premises Related Expense,2101,Grounds : R & M : Day to Day : Routine,JOHN MACADAM & SON (RESCUE) LTD,A0001846, 31/01/2019,OPS0293456,45.00,N,N/A,N,N/A,
Pendle Borough Council,Operational Services,,9303,Other Income : Non-VATable,JOHN MACADAM & SON (RESCUE) LTD,A0001846, 17/01/2019,OPS0293030,45.00,N,N/A,N,N/A,
Pendle Borough Council,Property Services,Premises Related Expense,2501,Water & Sewerage,WATER PLUS LIMITED,A0001986, 10/01/2019,EST0292942,96.72,N,N/A,N,N/A,
Pendle Borough Council,Property Services,Premises Related Expense,2501,Water & Sewerage,WATER PLUS LIMITED,A0001986, 10/01/2019,EST0292951,507.26,N,N/A,N,N/A,
Pendle Borough Council,Property Services,Premises Related Expense,2501,Water & Sewerage,WATER PLUS LIMITED,A0001986, 17/01/2019,EST0293065,60.22,N,N/A,N,N/A,
Pendle Borough Council,Property Services,Premises Related Expense,2501,Water & Sewerage,WATER PLUS LIMITED,A0001986, 10/01/2019,EST0292950,158.36,N,N/A,N,N/A,
Pendle Borough Council,Property Services,Premises Related Expense,2501,Water & Sewerage,WATER PLUS LIMITED,A0001986, 17/01/2019,EST0293064,30.06,N,N/A,N,N/A,
Pendle Borough Council,Property Services,Premises Related Expense,2501,Water & Sewerage,WATER PLUS LIMITED,A0001986, 31/01/2019,EST0293376,186.40,N,N/A,N,N/A,
Pendle Borough Council,Property Services,Premises Related Expense,2501,Water & Sewerage,WATER PLUS LIMITED,A0001986, 17/01/2019,EST4005987,-154.56,N,N/A,N,N/A,
Pendle Borough Council,Property Services,Premises Related Expense,2501,Water & Sewerage,WATER PLUS LIMITED,A0001986, 17/01/2019,EST4005986,-84.12,N,N/A,N,N/A,
Pendle Borough Council,Property Services,Premises Related Expense,2501,Water & Sewerage,WATER PLUS LIMITED,A0001986, 17/01/2019,EST0293074,137.21,N,N/A,N,N/A,
Pendle Borough Council,Property Services,Premises Related Expense,2501,Water & Sewerage,WATER PLUS LIMITED,A0001986, 17/01/2019,EST0293098,154.56,N,N/A,N,N/A,
Pendle Borough Council,Property Services,Premises Related Expense,2501,Water & Sewerage,WATER PLUS LIMITED,A0001986, 10/01/2019,EST4005981,"-1,086.26",N,N/A,N,N/A,
Pendle Borough Council,Property Services,Premises Related Expense,2501,Water & Sewerage,WATER PLUS LIMITED,A0001986, 10/01/2019,EST0292946,429.42,N,N/A,N,N/A,
Pendle Borough Council,Property Services,Premises Related Expense,2501,Water & Sewerage,WATER PLUS LIMITED,A0001986, 10/01/2019,EST0292948,987.13,N,N/A,N,N/A,
Pendle Borough Council,Property Services,Premises Related Expense,2501,Water & Sewerage,WATER PLUS LIMITED,A0001986, 31/01/2019,EST4005988,-430.64,N,N/A,N,N/A,
Pendle Borough Council,Property Services,Premises Related Expense,2501,Water & Sewerage,WATER PLUS LIMITED,A0001986, 31/01/2019,EST0293208,153.18,N,N/A,N,N/A,
Pendle Borough Council,Property Services,Premises Related Expense,2501,Water & Sewerage,WATER PLUS LIMITED,A0001986, 31/01/2019,EST0293377,308.87,N,N/A,N,N/A,
Pendle Borough Council,Property Services,Premises Related Expense,2501,Water & Sewerage,WATER PLUS LIMITED,A0001986, 31/01/2019,EST0293207,341.93,N,N/A,N,N/A,
Pendle Borough Council,Property Services,Premises Related Expense,2001,Bldgs : R & M : Day To Day,F NUTTER & SONS,A0002037, 31/01/2019,EST0293379,150.00,N,N/A,N,N/A,
Pendle Borough Council,Property Services,Premises Related Expense,2001,Bldgs : R & M : Day To Day,F NUTTER & SONS,A0002037, 31/01/2019,EST0293379,350.00,N,N/A,N,N/A,
Pendle Borough Council,Property Services,Premises Related Expense,2001,Bldgs : R & M : Day To Day,F NUTTER & SONS,A0002037, 31/01/2019,EST0293379,10.38,N,N/A,N,N/A,
Pendle Borough Council,Property Services,Premises Related Expense,2001,Bldgs : R & M : Day To Day,F NUTTER & SONS,A0002037, 31/01/2019,EST0293379,91.00,N,N/A,N,N/A,
Pendle Borough Council,Property Services,Premises Related Expense,2001,Bldgs : R & M : Day To Day,F NUTTER & SONS,A0002037, 24/01/2019,EST0293199,126.83,N,N/A,N,N/A,
Pendle Borough Council,Property Services,Premises Related Expense,2001,Bldgs : R & M : Day To Day,F NUTTER & SONS,A0002037, 24/01/2019,EST0293199,205.00,N,N/A,N,N/A,
Pendle Borough Council,Property Services,Premises Related Expense,2005,Bldgs : Vandalism Repairs,F NUTTER & SONS,A0002037, 31/01/2019,EST0293379,350.00,N,N/A,N,N/A,
Pendle Borough Council,Property Services,Premises Related Expense,2005,Bldgs : Vandalism Repairs,F NUTTER & SONS,A0002037, 31/01/2019,EST0293379,740.00,N,N/A,N,N/A,
Pendle Borough Council,Property Services,Capital Costs,CD14,Capital : Payments,F NUTTER & SONS,A0002037, 24/01/2019,EST0293199,19.42,N,N/A,N,N/A,
Pendle Borough Council,Property Services,Capital Costs,CD14,Capital : Payments,F NUTTER & SONS,A0002037, 24/01/2019,EST0293199,120.00,N,N/A,N,N/A,
Pendle Borough Council,Property Services,Capital Costs,CD14,Capital : Payments,F NUTTER & SONS,A0002037, 24/01/2019,EST0293199,150.00,N,N/A,N,N/A,
Pendle Borough Council,Property Services,Capital Costs,CD14,Capital : Payments,F NUTTER & SONS,A0002037, 24/01/2019,EST0293199,416.00,N,N/A,N,N/A,
Pendle Borough Council,Parks & Recreation Services,Transport Related Expense,3105,Tprt : Repairs : General,OPTION HYGIENE LIMITED,A0002063, 31/01/2019,PCO0293430,40.28,N,N/A,N,N/A,
Pendle Borough Council,Parks & Recreation Services,Supplies and Services,4201,Protective Clothing,OPTION HYGIENE LIMITED,A0002063, 10/01/2019,PCO0292959,7.75,N,N/A,N,N/A,
Pendle Borough Council,Parks & Recreation Services,Supplies and Services,4201,Protective Clothing,OPTION HYGIENE LIMITED,A0002063, 10/01/2019,PCO0292955,25.68,N,N/A,N,N/A,
Pendle Borough Council,Parks & Recreation Services,Premises Related Expense,2001,Bldgs : R & M : Day To Day,POWER PIPES (PENDLE) LIMITED,A0002089, 31/01/2019,PCO0293429,72.00,N,N/A,N,N/A,
Pendle Borough Council,Operational Services,Premises Related Expense,2001,Bldgs : R & M : Day To Day,POWER PIPES (PENDLE) LIMITED,A0002089, 24/01/2019,OPS0293190,122.77,N,N/A,N,N/A,
Pendle Borough Council,Parks & Recreation Services,Transport Related Expense,3105,Tprt : Repairs : General,POWER PIPES (PENDLE) LIMITED,A0002089, 31/01/2019,PCO0293428,118.61,N,N/A,N,N/A,
Pendle Borough Council,Property Services,Supplies and Services,4705,Other Expenses,PENDLE SIGNS & PLASTICS LIMITED,A0002112, 17/01/2019,EST0293142,848.55,N,N/A,N,N/A,
Pendle Borough Council,Parks & Recreation Services,Agency Staff,1001,Emp : Basic Wages,PENDLE PERSONNEL LTD,A0002198, 31/01/2019,PCO0293420,-189.60,N,N/A,N,N/A,
Pendle Borough Council,Parks & Recreation Services,Agency Staff,1001,Emp : Basic Wages,PENDLE PERSONNEL LTD,A0002198, 10/01/2019,PCO0292904,284.40,N,N/A,N,N/A,
Pendle Borough Council,Parks & Recreation Services,Agency Staff,1001,Emp : Basic Wages,PENDLE PERSONNEL LTD,A0002198, 31/01/2019,PCO0293420,423.64,N,N/A,N,N/A,
Pendle Borough Council,Parks & Recreation Services,Agency Staff,1001,Emp : Basic Wages,PENDLE PERSONNEL LTD,A0002198, 10/01/2019,PCO0292903,438.45,N,N/A,N,N/A,
Pendle Borough Council,Parks & Recreation Services,Agency Staff,1001,Emp : Basic Wages,PENDLE PERSONNEL LTD,A0002198, 24/01/2019,PCO0293279,438.45,N,N/A,N,N/A,
Pendle Borough Council,Parks & Recreation Services,Agency Staff,1001,Emp : Basic Wages,PENDLE PERSONNEL LTD,A0002198, 31/01/2019,PCO0293421,463.35,N,N/A,N,N/A,
Pendle Borough Council,Operational Services,Agency Staff,1004,Emp : Agency Wages,PENDLE PERSONNEL LTD,A0002198, 31/01/2019,OPS0293477,29.05,N,N/A,N,N/A,
Pendle Borough Council,Operational Services,Agency Staff,1004,Emp : Agency Wages,PENDLE PERSONNEL LTD,A0002198, 31/01/2019,OPS0293480,177.75,N,N/A,N,N/A,
Pendle Borough Council,Operational Services,Agency Staff,1004,Emp : Agency Wages,PENDLE PERSONNEL LTD,A0002198, 10/01/2019,OPS0292868,88.88,N,N/A,N,N/A,
Pendle Borough Council,Operational Services,Agency Staff,1004,Emp : Agency Wages,PENDLE PERSONNEL LTD,A0002198, 31/01/2019,OPS0293480,177.75,N,N/A,N,N/A,
Pendle Borough Council,Operational Services,Agency Staff,1004,Emp : Agency Wages,PENDLE PERSONNEL LTD,A0002198, 10/01/2019,OPS0292867,260.70,N,N/A,N,N/A,
Pendle Borough Council,Operational Services,Agency Staff,1004,Emp : Agency Wages,PENDLE PERSONNEL LTD,A0002198, 31/01/2019,OPS0293477,420.68,N,N/A,N,N/A,
Pendle Borough Council,Operational Services,Agency Staff,1004,Emp : Agency Wages,PENDLE PERSONNEL LTD,A0002198, 31/01/2019,OPS0293481,438.45,N,N/A,N,N/A,
Pendle Borough Council,Parks & Recreation Services,Agency Staff,1020,Emp : Salaries & Wages,PENDLE PERSONNEL LTD,A0002198, 24/01/2019,PCO0293277,135.20,N,N/A,N,N/A,
Pendle Borough Council,Parks & Recreation Services,Agency Staff,1020,Emp : Salaries & Wages,PENDLE PERSONNEL LTD,A0002198, 24/01/2019,PCO0293280,150.80,N,N/A,N,N/A,
Pendle Borough Council,Economic Development & Tourism,Supplies and Services,4707,Miscellaneous : Other,RIGBY TAYLOR LIMITED,A0002276, 24/01/2019,REG0293265,117.00,N,N/A,N,N/A,
Pendle Borough Council,Democratic & Legal Services,Supplies and Services,4501,Postages,ROYAL MAIL GROUP LIMITED,A0002281, 24/01/2019,DAL0293272,-14.58,N,N/A,N,N/A,
Pendle Borough Council,Democratic & Legal Services,Supplies and Services,4501,Postages,ROYAL MAIL GROUP LIMITED,A0002281, 24/01/2019,DAL0293269,23.10,N,N/A,N,N/A,
Pendle Borough Council,Democratic & Legal Services,Supplies and Services,4501,Postages,ROYAL MAIL GROUP LIMITED,A0002281, 10/01/2019,DAL0292841,165.98,N,N/A,N,N/A,
Pendle Borough Council,Democratic & Legal Services,Supplies and Services,4501,Postages,ROYAL MAIL GROUP LIMITED,A0002281, 24/01/2019,DAL0293269,201.14,N,N/A,N,N/A,
Pendle Borough Council,Democratic & Legal Services,Supplies and Services,4501,Postages,ROYAL MAIL GROUP LIMITED,A0002281, 24/01/2019,DAL0293272,428.81,N,N/A,N,N/A,
Pendle Borough Council,Democratic & Legal Services,Supplies and Services,4501,Postages,ROYAL MAIL GROUP LIMITED,A0002281, 10/01/2019,DAL0292841,17.48,N,N/A,N,N/A,
Pendle Borough Council,Democratic & Legal Services,Supplies and Services,4501,Postages,ROYAL MAIL GROUP LIMITED,A0002281, 24/01/2019,DAL0293269,58.70,N,N/A,N,N/A,
Pendle Borough Council,Democratic & Legal Services,Supplies and Services,4501,Postages,ROYAL MAIL GROUP LIMITED,A0002281, 10/01/2019,DAL0292841,87.16,N,N/A,N,N/A,
Pendle Borough Council,Democratic & Legal Services,Supplies and Services,4501,Postages,ROYAL MAIL GROUP LIMITED,A0002281, 10/01/2019,DAL0292841,4.21,N,N/A,N,N/A,
Pendle Borough Council,Democratic & Legal Services,Supplies and Services,4501,Postages,ROYAL MAIL GROUP LIMITED,A0002281, 24/01/2019,DAL0293269,19.37,N,N/A,N,N/A,
Pendle Borough Council,Democratic & Legal Services,Supplies and Services,4501,Postages,ROYAL MAIL GROUP LIMITED,A0002281, 10/01/2019,DAL0292996,3.30,N,N/A,N,N/A,
Pendle Borough Council,Democratic & Legal Services,Supplies and Services,4501,Postages,ROYAL MAIL GROUP LIMITED,A0002281, 24/01/2019,DAL0293269,3.66,N,N/A,N,N/A,
Pendle Borough Council,Democratic & Legal Services,Supplies and Services,4501,Postages,ROYAL MAIL GROUP LIMITED,A0002281, 10/01/2019,DAL0292841,2.81,N,N/A,N,N/A,
Pendle Borough Council,Democratic & Legal Services,Supplies and Services,4501,Postages,ROYAL MAIL GROUP LIMITED,A0002281, 24/01/2019,DAL0293269,8.47,N,N/A,N,N/A,
Pendle Borough Council,Democratic & Legal Services,Supplies and Services,4501,Postages,ROYAL MAIL GROUP LIMITED,A0002281, 10/01/2019,DAL0292996,0.83,N,N/A,N,N/A,
Pendle Borough Council,Democratic & Legal Services,Supplies and Services,4501,Postages,ROYAL MAIL GROUP LIMITED,A0002281, 10/01/2019,DAL0292841,13.75,N,N/A,N,N/A,
Pendle Borough Council,Democratic & Legal Services,Supplies and Services,4501,Postages,ROYAL MAIL GROUP LIMITED,A0002281, 10/01/2019,DAL0292841,36.10,N,N/A,N,N/A,
Pendle Borough Council,Democratic & Legal Services,Supplies and Services,4501,Postages,ROYAL MAIL GROUP LIMITED,A0002281, 24/01/2019,DAL0293269,52.87,N,N/A,N,N/A,
Pendle Borough Council,Democratic & Legal Services,Supplies and Services,4501,Postages,ROYAL MAIL GROUP LIMITED,A0002281, 10/01/2019,DAL0292841,2.30,N,N/A,N,N/A,
Pendle Borough Council,Democratic & Legal Services,Supplies and Services,4501,Postages,ROYAL MAIL GROUP LIMITED,A0002281, 24/01/2019,DAL0293269,2.90,N,N/A,N,N/A,
Pendle Borough Council,Democratic & Legal Services,Supplies and Services,4501,Postages,ROYAL MAIL GROUP LIMITED,A0002281, 10/01/2019,DAL0292841,42.10,N,N/A,N,N/A,
Pendle Borough Council,Democratic & Legal Services,Supplies and Services,4501,Postages,ROYAL MAIL GROUP LIMITED,A0002281, 10/01/2019,DAL0292887,112.00,N,N/A,N,N/A,
Pendle Borough Council,Democratic & Legal Services,Supplies and Services,4501,Postages,ROYAL MAIL GROUP LIMITED,A0002281, 24/01/2019,DAL0293269,193.47,N,N/A,N,N/A,
Pendle Borough Council,Democratic & Legal Services,Supplies and Services,4501,Postages,ROYAL MAIL GROUP LIMITED,A0002281, 10/01/2019,DAL0292887,112.00,N,N/A,N,N/A,
Pendle Borough Council,Democratic & Legal Services,Supplies and Services,4501,Postages,ROYAL MAIL GROUP LIMITED,A0002281, 24/01/2019,DAL0293269,266.56,N,N/A,N,N/A,
Pendle Borough Council,Democratic & Legal Services,Supplies and Services,4501,Postages,ROYAL MAIL GROUP LIMITED,A0002281, 10/01/2019,DAL0292841,270.08,N,N/A,N,N/A,
Pendle Borough Council,Democratic & Legal Services,Supplies and Services,4501,Postages,ROYAL MAIL GROUP LIMITED,A0002281, 10/01/2019,DAL0292841,25.45,N,N/A,N,N/A,
Pendle Borough Council,Democratic & Legal Services,Supplies and Services,4501,Postages,ROYAL MAIL GROUP LIMITED,A0002281, 24/01/2019,DAL0293269,40.50,N,N/A,N,N/A,
Pendle Borough Council,Democratic & Legal Services,Supplies and Services,4501,Postages,ROYAL MAIL GROUP LIMITED,A0002281, 10/01/2019,DAL0292841,213.53,N,N/A,N,N/A,
Pendle Borough Council,Democratic & Legal Services,Supplies and Services,4501,Postages,ROYAL MAIL GROUP LIMITED,A0002281, 24/01/2019,DAL0293269,243.23,N,N/A,N,N/A,
Pendle Borough Council,Democratic & Legal Services,Supplies and Services,4501,Postages,ROYAL MAIL GROUP LIMITED,A0002281, 24/01/2019,DAL0293269,115.58,N,N/A,N,N/A,
Pendle Borough Council,Democratic & Legal Services,Supplies and Services,4501,Postages,ROYAL MAIL GROUP LIMITED,A0002281, 10/01/2019,DAL0292841,145.95,N,N/A,N,N/A,
Pendle Borough Council,Environmental Health Services,Supplies and Services,4705,Other Expenses,RIBBLE VALLEY BOROUGH COUNCIL,A0002290, 10/01/2019,ENV0292884,125.82,N,N/A,N,N/A,
Pendle Borough Council,Democratic & Legal Services,,B116,P & R : Civic Ties,SHAW & SONS LTD,A0002414, 10/01/2019,DAL4005985,-40.00,N,N/A,N,N/A,
Pendle Borough Council,Democratic & Legal Services,,B116,P & R : Civic Ties,SHAW & SONS LTD,A0002414, 10/01/2019,DAL0292999,"1,960.00",N,N/A,N,N/A,
Pendle Borough Council,Operational Services,Transport Related Expense,3601,Tprt : Annual Hire Charge,STANLEY BROTHERS (TIPPERS) LTD,A0002422, 24/01/2019,OPS0293288,"1,900.00",N,N/A,N,N/A,
Pendle Borough Council,Operational Services,Transport Related Expense,3601,Tprt : Annual Hire Charge,STANLEY BROTHERS (TIPPERS) LTD,A0002422, 24/01/2019,OPS0293287,"2,200.00",N,N/A,N,N/A,
Pendle Borough Council,Planning & Building Control,Supplies and Services,4003,EFM : Other Equipment,STANLEY HOUSE VETERINARY GROUP,A0002423, 17/01/2019,PBC0293097,500.00,N,N/A,N,N/A,
Pendle Borough Council,Operational Services,Supplies and Services,4405,Veterinary Fees,STANLEY HOUSE VETERINARY GROUP,A0002423, 10/01/2019,OPS0292854,40.91,N,N/A,N,N/A,
Pendle Borough Council,Democratic & Legal Services,Supplies and Services,4705,Other Expenses,SOCITM LIMITED,A0002452, 10/01/2019,DAL0292896,995.00,N,N/A,N,N/A,
Pendle Borough Council,Parks & Recreation Services,Premises Related Expense,2101,Grounds : R & M : Day to Day : Routine,ROBERTSON MEMORIALS,A0002590, 31/01/2019,PCO0293474,274.00,N,N/A,N,N/A,
Pendle Borough Council,Property Services,Premises Related Expense,2001,Bldgs : R & M : Day To Day,T & F STEEL DESIGNS LTD,A0002627, 31/01/2019,EST0293365,90.00,N,N/A,N,N/A,
Pendle Borough Council,Property Services,Premises Related Expense,2001,Bldgs : R & M : Day To Day,T & F STEEL DESIGNS LTD,A0002627, 31/01/2019,EST0293365,95.00,N,N/A,N,N/A,
Pendle Borough Council,Property Services,Premises Related Expense,2001,Bldgs : R & M : Day To Day,T & F STEEL DESIGNS LTD,A0002627, 31/01/2019,EST0293363,540.00,N,N/A,N,N/A,
Pendle Borough Council,Property Services,Premises Related Expense,2001,Bldgs : R & M : Day To Day,T & F STEEL DESIGNS LTD,A0002627, 31/01/2019,EST0293363,740.00,N,N/A,N,N/A,
Pendle Borough Council,Property Services,Premises Related Expense,2101,Grounds : R & M : Day to Day : Routine,T & F STEEL DESIGNS LTD,A0002627, 31/01/2019,EST0293364,45.00,N,N/A,N,N/A,
Pendle Borough Council,Property Services,Premises Related Expense,2101,Grounds : R & M : Day to Day : Routine,T & F STEEL DESIGNS LTD,A0002627, 31/01/2019,EST0293364,135.00,N,N/A,N,N/A,
Pendle Borough Council,Chief Executives Policy Unit,Supplies and Services,4705,Other Expenses,T & F STEEL DESIGNS LTD,A0002627, 10/01/2019,COR0292915,560.00,N,N/A,N,N/A,
Pendle Borough Council,Chief Executives Policy Unit,Supplies and Services,4705,Other Expenses,T & F STEEL DESIGNS LTD,A0002627, 10/01/2019,COR0292915,940.00,N,N/A,N,N/A,
Pendle Borough Council,Engineering & Special Projects,Capital Costs,CD14,Capital : Payments,T & F STEEL DESIGNS LTD,A0002627, 31/01/2019,HED0293359,120.00,N,N/A,N,N/A,
Pendle Borough Council,Engineering & Special Projects,Capital Costs,CD14,Capital : Payments,T & F STEEL DESIGNS LTD,A0002627, 31/01/2019,HED0293359,195.00,N,N/A,N,N/A,
Pendle Borough Council,Engineering & Special Projects,Capital Costs,CD14,Capital : Payments,T & F STEEL DESIGNS LTD,A0002627, 31/01/2019,HED0293356,35.00,N,N/A,N,N/A,
Pendle Borough Council,Engineering & Special Projects,Capital Costs,CD14,Capital : Payments,T & F STEEL DESIGNS LTD,A0002627, 31/01/2019,HED0293356,120.00,N,N/A,N,N/A,
Pendle Borough Council,Property Services,Capital Costs,CD14,Capital : Payments,T & F STEEL DESIGNS LTD,A0002627, 31/01/2019,EST0293366,75.00,N,N/A,N,N/A,
Pendle Borough Council,Property Services,Capital Costs,CD14,Capital : Payments,T & F STEEL DESIGNS LTD,A0002627, 31/01/2019,EST0293366,80.00,N,N/A,N,N/A,
Pendle Borough Council,Environmental Health Services,Supplies and Services,4705,Other Expenses,JOHNSONS TEXICARE LTD,A0002665, 31/01/2019,ENV0293441,87.60,N,N/A,N,N/A,
Pendle Borough Council,Housing Regeneration Services,Supplies and Services,4705,Other Expenses,JOHNSONS TEXICARE LTD,A0002665, 17/01/2019,HMR0293100,87.60,N,N/A,N,N/A,
Pendle Borough Council,Parks & Recreation Services,Supplies and Services,0002,Expenditure : Materials,TRAVIS PERKINS TRADING CO LTD,A0002709, 10/01/2019,PCO0292967,5.91,N,N/A,N,N/A,
Pendle Borough Council,Parks & Recreation Services,Supplies and Services,0002,Expenditure : Materials,TRAVIS PERKINS TRADING CO LTD,A0002709, 31/01/2019,PCO0293452,46.40,N,N/A,N,N/A,
Pendle Borough Council,Parks & Recreation Services,Premises Related Expense,2101,Grounds : R & M : Day to Day : Routine,TRAVIS PERKINS TRADING CO LTD,A0002709, 24/01/2019,PCO0293180,20.00,N,N/A,N,N/A,
Pendle Borough Council,Parks & Recreation Services,Premises Related Expense,2101,Grounds : R & M : Day to Day : Routine,TRAVIS PERKINS TRADING CO LTD,A0002709, 24/01/2019,PCO0293180,111.00,N,N/A,N,N/A,
Pendle Borough Council,Operational Services,,PD03,Paid in the Year,TRAVIS PERKINS TRADING CO LTD,A0002709, 31/01/2019,OPS0293393,37.96,N,N/A,N,N/A,
Pendle Borough Council,Operational Services,,PD03,Paid in the Year,TRAVIS PERKINS TRADING CO LTD,A0002709, 31/01/2019,OPS0293393,90.00,N,N/A,N,N/A,
Pendle Borough Council,Democratic & Legal Services,Supplies and Services,4001,EFM : Photocopiers,REDACTED - PERSONAL DATA,A0002785, 10/01/2019,DAL0292834,8.33,N,N/A,N,N/A,
Pendle Borough Council,Democratic & Legal Services,Supplies and Services,4601,Seminars etc All Costs,REDACTED - PERSONAL DATA,A0002785, 24/01/2019,DAL0293271,23.33,N,N/A,N,N/A,
Pendle Borough Council,Operational Services,Agency Staff,1004,Emp : Agency Wages,DHRB LIMITED T/A DRIVER HIRE (45680),A0003556, 31/01/2019,OPS0293483,472.00,N,N/A,N,N/A,
Pendle Borough Council,Operational Services,Agency Staff,1004,Emp : Agency Wages,DHRB LIMITED T/A DRIVER HIRE (45680),A0003556, 10/01/2019,OPS0292900,796.50,N,N/A,N,N/A,
Pendle Borough Council,Operational Services,Agency Staff,1004,Emp : Agency Wages,DHRB LIMITED T/A DRIVER HIRE (45680),A0003556, 10/01/2019,OPS0292900,295.00,N,N/A,N,N/A,
Pendle Borough Council,Operational Services,Agency Staff,1004,Emp : Agency Wages,DHRB LIMITED T/A DRIVER HIRE (45680),A0003556, 31/01/2019,OPS0293475,472.00,N,N/A,N,N/A,
Pendle Borough Council,Operational Services,Agency Staff,1004,Emp : Agency Wages,DHRB LIMITED T/A DRIVER HIRE (45680),A0003556, 31/01/2019,OPS0293483,708.00,N,N/A,N,N/A,
Pendle Borough Council,Property Services,Premises Related Expense,2001,Bldgs : R & M : Day To Day,FAST GLASS GLAZING LIMITED,A0005903, 10/01/2019,EST0292920,45.00,N,N/A,N,N/A,
Pendle Borough Council,Property Services,Premises Related Expense,2001,Bldgs : R & M : Day To Day,FAST GLASS GLAZING LIMITED,A0005903, 31/01/2019,EST0293368,95.00,N,N/A,N,N/A,
Pendle Borough Council,Property Services,Premises Related Expense,2001,Bldgs : R & M : Day To Day,FAST GLASS GLAZING LIMITED,A0005903, 10/01/2019,EST0292920,100.00,N,N/A,N,N/A,
Pendle Borough Council,Democratic & Legal Services,Indirect Employee Expenses,1261,Staff Refreshments,PHILIP SANDERSON,A0006611, 10/01/2019,DAL0292997,10.07,N,N/A,N,N/A,
Pendle Borough Council,Democratic & Legal Services,Indirect Employee Expenses,1261,Staff Refreshments,PHILIP SANDERSON,A0006611, 10/01/2019,DAL0292997,7.00,N,N/A,N,N/A,
Pendle Borough Council,Democratic & Legal Services,Supplies and Services,4611,Hospitality,PHILIP SANDERSON,A0006611, 10/01/2019,DAL0292997,13.60,N,N/A,N,N/A,
Pendle Borough Council,Directorate,Supplies and Services,4601,Seminars etc All Costs,REDACTED - PERSONAL DATA,A0007326, 31/01/2019,MAN0293326,10.00,N,N/A,N,N/A,
Pendle Borough Council,Human Resources,Indirect Employee Expenses,1211,Training,NORTH WESTERN EMPLOYERS ORGANISATION,A0010430, 17/01/2019,PER0293140,150.00,N,N/A,N,N/A,
Pendle Borough Council,Environmental Health Services,Premises Related Expense,2002,Bldgs : R & M : Abnormal,CPC PROP & GARDENING SERV LTD,A0011770, 31/01/2019,ENV0293378,130.00,N,N/A,N,N/A,
Pendle Borough Council,Human Resources,Supplies and Services,4601,Seminars etc All Costs,PENDLE LEISURE LIMITED,A0012961, 10/01/2019,PER0292972,50.00,Y,XR43029,N,N/A,
Pendle Borough Council,Financial Services,Supplies and Services,4601,Seminars etc All Costs,PENDLE LEISURE LIMITED,A0012961, 17/01/2019,AAS0293137,122.50,Y,XR43029,N,N/A,
Pendle Borough Council,Democratic & Legal Services,Supplies and Services,4610,Meeting Expenses,PENDLE LEISURE LIMITED,A0012961, 17/01/2019,DAL0293118,116.67,Y,XR43029,N,N/A,
Pendle Borough Council,Democratic & Legal Services,Supplies and Services,4610,Meeting Expenses,PENDLE LEISURE LIMITED,A0012961, 17/01/2019,DAL0293119,145.83,Y,XR43029,N,N/A,
Pendle Borough Council,Democratic & Legal Services,Supplies and Services,4614,Mayoral Expenses,PENDLE LEISURE LIMITED,A0012961, 31/01/2019,DAL0293329,106.67,Y,XR43029,N,N/A,
Pendle Borough Council,Engineering & Special Projects,Capital Costs,CD14,Capital : Payments,PENDLE LEISURE LIMITED,A0012961, 24/01/2019,HED0293170,"5,951.00",Y,XR43029,N,N/A,
Pendle Borough Council,Parks & Recreation Services,Premises Related Expense,2001,Bldgs : R & M : Day To Day,LANDSCAPE ENGINEERING LTD,A0013135, 10/01/2019,PCO0292863,762.98,N,N/A,N,N/A,
Pendle Borough Council,Parks & Recreation Services,Premises Related Expense,2001,Bldgs : R & M : Day To Day,LANDSCAPE ENGINEERING LTD,A0013135, 10/01/2019,PCO0292863,457.02,N,N/A,N,N/A,
Pendle Borough Council,Parks & Recreation Services,Premises Related Expense,2101,Grounds : R & M : Day to Day : Routine,LANDSCAPE ENGINEERING LTD,A0013135, 10/01/2019,PCO0292863,600.00,N,N/A,N,N/A,
Pendle Borough Council,Parks & Recreation Services,Premises Related Expense,2101,Grounds : R & M : Day to Day : Routine,LANDSCAPE ENGINEERING LTD,A0013135, 10/01/2019,PCO0292863,500.00,N,N/A,N,N/A,
Pendle Borough Council,Parks & Recreation Services,Premises Related Expense,2101,Grounds : R & M : Day to Day : Routine,LANDSCAPE ENGINEERING LTD,A0013135, 10/01/2019,PCO0292863,"1,060.00",N,N/A,N,N/A,
Pendle Borough Council,Engineering & Special Projects,,PD03,Paid in the Year,WILLIAM SMITH GROUP 1832 LIMITED,A0013824, 17/01/2019,HED0293024,90.55,N,N/A,N,N/A,
Pendle Borough Council,Operational Services,Supplies and Services,4007,Sub-Contractors,ORCHARD RECYCLING SERVICE,A0015803, 10/01/2019,OPS0292908,225.00,N,N/A,N,N/A,
Pendle Borough Council,Operational Services,Supplies and Services,4007,Sub-Contractors,ORCHARD RECYCLING SERVICE,A0015803, 10/01/2019,OPS0292974,435.00,N,N/A,N,N/A,
Pendle Borough Council,Operational Services,Supplies and Services,4007,Sub-Contractors,ORCHARD RECYCLING SERVICE,A0015803, 10/01/2019,OPS0292846,802.50,N,N/A,N,N/A,
Pendle Borough Council,Operational Services,Supplies and Services,4007,Sub-Contractors,ORCHARD RECYCLING SERVICE,A0015803, 17/01/2019,OPS0293121,855.00,N,N/A,N,N/A,
Pendle Borough Council,Operational Services,Supplies and Services,4007,Sub-Contractors,ORCHARD RECYCLING SERVICE,A0015803, 31/01/2019,OPS0293444,922.50,N,N/A,N,N/A,
Pendle Borough Council,Operational Services,Supplies and Services,4007,Sub-Contractors,ORCHARD RECYCLING SERVICE,A0015803, 24/01/2019,OPS0293283,"1,027.50",N,N/A,N,N/A,
Pendle Borough Council,Operational Services,Supplies and Services,4707,Miscellaneous : Other,ORCHARD RECYCLING SERVICE,A0015803, 24/01/2019,OPS0293283,330.75,N,N/A,N,N/A,
Pendle Borough Council,Operational Services,Supplies and Services,4707,Miscellaneous : Other,ORCHARD RECYCLING SERVICE,A0015803, 10/01/2019,OPS0292908,459.25,N,N/A,N,N/A,
Pendle Borough Council,Operational Services,Agency Costs,5009,Fast Action Response,ORCHARD RECYCLING SERVICE,A0015803, 24/01/2019,OPS0293283,330.75,N,N/A,N,N/A,
Pendle Borough Council,Operational Services,Agency Costs,5009,Fast Action Response,ORCHARD RECYCLING SERVICE,A0015803, 10/01/2019,OPS0292908,459.25,N,N/A,N,N/A,
Pendle Borough Council,Engineering & Special Projects,Supplies and Services,4419,LCC Levy (Admins Costs),JACOBS,A0016294, 10/01/2019,HED0292842,110.00,N,N/A,N,N/A,
Pendle Borough Council,Human Resources,Indirect Employee Expenses,1221,Recruitment,CHARTERED INST OF ENV HEALTH,A0020604, 31/01/2019,PER0293382,750.00,N,N/A,N,N/A,
Pendle Borough Council,Operational Services,Supplies and Services,4705,Other Expenses,ASPEN VALLEY KENNELS & CATTERY,A0022106, 17/01/2019,OPS0293029,913.11,N,N/A,N,N/A,
Pendle Borough Council,Democratic & Legal Services,Supplies and Services,4305,Newspapers & Periodicals,HOPKINSON NEWS LTD,A0022188, 10/01/2019,DAL0292835,34.20,N,N/A,N,N/A,
Pendle Borough Council,Democratic & Legal Services,Supplies and Services,4305,Newspapers & Periodicals,HOPKINSON NEWS LTD,A0022188, 24/01/2019,DAL0293273,34.30,N,N/A,N,N/A,
Pendle Borough Council,Democratic & Legal Services,Supplies and Services,4305,Newspapers & Periodicals,HOPKINSON NEWS LTD,A0022188, 10/01/2019,DAL0292835,7.60,N,N/A,N,N/A,
Pendle Borough Council,Democratic & Legal Services,Supplies and Services,4305,Newspapers & Periodicals,HOPKINSON NEWS LTD,A0022188, 10/01/2019,DAL0292835,4.95,N,N/A,N,N/A,
Pendle Borough Council,Democratic & Legal Services,Supplies and Services,4305,Newspapers & Periodicals,HOPKINSON NEWS LTD,A0022188, 24/01/2019,DAL0293273,6.20,N,N/A,N,N/A,
Pendle Borough Council,Democratic & Legal Services,Supplies and Services,4305,Newspapers & Periodicals,HOPKINSON NEWS LTD,A0022188, 24/01/2019,DAL0293273,11.00,N,N/A,N,N/A,
Pendle Borough Council,Democratic & Legal Services,Supplies and Services,4305,Newspapers & Periodicals,HOPKINSON NEWS LTD,A0022188, 10/01/2019,DAL0292835,12.60,N,N/A,N,N/A,
Pendle Borough Council,Financial Services,Premises Related Expense,2202,Gas,E.ON,A0023073, 17/01/2019,AAS0293150,31.68,N,N/A,N,N/A,
Pendle Borough Council,Financial Services,Premises Related Expense,2203,Electricity,E.ON,A0023073, 24/01/2019,AAS0293324,13.60,N,N/A,N,N/A,
Pendle Borough Council,Financial Services,Premises Related Expense,2203,Electricity,E.ON,A0023073, 24/01/2019,AAS0293323,14.40,N,N/A,N,N/A,
Pendle Borough Council,Chief Executives Policy Unit,Premises Related Expense,2203,Electricity,E.ON,A0023073, 24/01/2019,COR0293162,-217.68,N,N/A,N,N/A,
Pendle Borough Council,Property Services,Premises Related Expense,2203,Electricity,E.ON,A0023073, 24/01/2019,EST0293212,4.94,N,N/A,N,N/A,
Pendle Borough Council,Financial Services,Premises Related Expense,2203,Electricity,E.ON,A0023073, 17/01/2019,AAS0293148,5.44,N,N/A,N,N/A,
Pendle Borough Council,Chief Executives Policy Unit,Premises Related Expense,2203,Electricity,E.ON,A0023073, 31/01/2019,COR0293443,10.86,N,N/A,N,N/A,
Pendle Borough Council,Chief Executives Policy Unit,Premises Related Expense,2203,Electricity,E.ON,A0023073, 24/01/2019,COR0293162,36.80,N,N/A,N,N/A,
Pendle Borough Council,Chief Executives Policy Unit,Premises Related Expense,2203,Electricity,E.ON,A0023073, 24/01/2019,COR0293162,189.92,N,N/A,N,N/A,
Pendle Borough Council,Property Services,Premises Related Expense,2203,Electricity,E.ON,A0023073, 24/01/2019,EST0293213,0.26,N,N/A,N,N/A,
Pendle Borough Council,Housing Regeneration Services,Supplies and Services,4706,Subscriptions & Donations,LANGUAGE LINE LIMITED,A0025582, 24/01/2019,HMR0293295,8.00,N,N/A,N,N/A,
Pendle Borough Council,Financial Services,Premises Related Expense,2702,Service Charge,BARNFIELD INVESTMENT PROPERTIES LTD,A0026595, 10/01/2019,AAS0292986,709.75,N,N/A,N,N/A,
Pendle Borough Council,Directorate,Supplies and Services,4601,Seminars etc All Costs,SOLACE GROUP LIMITED,A0040401, 24/01/2019,MAN0293149,225.00,N,N/A,N,N/A,
Pendle Borough Council,Property Services,Premises Related Expense,2001,Bldgs : R & M : Day To Day,PENNINE FIRE & SAFETY LTD,A0040931, 10/01/2019,EST0292923,48.50,N,N/A,N,N/A,
Pendle Borough Council,Chief Executives Policy Unit,Supplies and Services,4705,Other Expenses,WALVERDEN PRIMARY SCHOOL,A0041227, 10/01/2019,COR0293011,800.00,N,N/A,N,N/A,
Pendle Borough Council,Parks & Recreation Services,Premises Related Expense,2001,Bldgs : R & M : Day To Day,GROUNDFORCE,A0041286, 24/01/2019,PCO0293188,176.00,N,N/A,N,N/A,
Pendle Borough Council,Democratic & Legal Services,Supplies and Services,4301,Printing & Stationery,ELECTORAL REFORM SERVICES,A0041321, 10/01/2019,DAL0292995,89.87,N,N/A,N,N/A,
Pendle Borough Council,Democratic & Legal Services,Supplies and Services,4501,Postages,ELECTORAL REFORM SERVICES,A0041321, 10/01/2019,DAL0292995,118.25,N,N/A,N,N/A,
Pendle Borough Council,Democratic & Legal Services,Supplies and Services,4501,Postages,ELECTORAL REFORM SERVICES,A0041321, 24/01/2019,DAL0293268,470.95,N,N/A,N,N/A,
Pendle Borough Council,Economic Development & Tourism,Supplies and Services,4707,Miscellaneous : Other,REDACTED - PERSONAL DATA,A0041674, 10/01/2019,REG0292987,8.36,N,N/A,N,N/A,
Pendle Borough Council,Operational Services,,PJ01,Stock : Purchases,PMC POLYTHENE LIMITED,A0043215, 17/01/2019,OPS0293109,800.00,N,N/A,N,N/A,
Pendle Borough Council,Economic Development & Tourism,Supplies and Services,4003,EFM : Other Equipment,ROBERTSHAWS GARDEN MACHINERY LTD,A0043296, 31/01/2019,REG0293361,65.34,N,N/A,N,N/A,
Pendle Borough Council,Economic Development & Tourism,Supplies and Services,4003,EFM : Other Equipment,ROBERTSHAWS GARDEN MACHINERY LTD,A0043296, 31/01/2019,REG0293360,99.89,N,N/A,N,N/A,
Pendle Borough Council,Parks & Recreation Services,Transport Related Expense,3105,Tprt : Repairs : General,M J RUSHTON,A0043864, 10/01/2019,PCO0292858,75.00,N,N/A,N,N/A,
Pendle Borough Council,Operational Services,Supplies and Services,4007,Sub-Contractors,S M SHEPHERD BUILDING CONTRACTORS,A0044037, 31/01/2019,OPS0293460,230.00,N,N/A,N,N/A,
Pendle Borough Council,Operational Services,Supplies and Services,4007,Sub-Contractors,S M SHEPHERD BUILDING CONTRACTORS,A0044037, 31/01/2019,OPS0293460,230.00,N,N/A,N,N/A,
Pendle Borough Council,Operational Services,,PD03,Paid in the Year,S M SHEPHERD BUILDING CONTRACTORS,A0044037, 17/01/2019,OPS0293078,160.00,N,N/A,N,N/A,
Pendle Borough Council,Operational Services,,PD03,Paid in the Year,S M SHEPHERD BUILDING CONTRACTORS,A0044037, 17/01/2019,OPS0293078,200.00,N,N/A,N,N/A,
Pendle Borough Council,Operational Services,Transport Related Expense,3105,Tprt : Repairs : General,GO PLANT LIMITED,A0045105, 31/01/2019,OPS0293396,33.25,N,N/A,N,N/A,
Pendle Borough Council,Operational Services,Transport Related Expense,3105,Tprt : Repairs : General,GO PLANT LIMITED,A0045105, 31/01/2019,OPS0293401,319.67,N,N/A,N,N/A,
Pendle Borough Council,Operational Services,Transport Related Expense,3105,Tprt : Repairs : General,GO PLANT LIMITED,A0045105, 10/01/2019,OPS0292910,178.79,N,N/A,N,N/A,
Pendle Borough Council,Operational Services,Transport Related Expense,3105,Tprt : Repairs : General,GO PLANT LIMITED,A0045105, 31/01/2019,OPS0293403,32.00,N,N/A,N,N/A,
Pendle Borough Council,Operational Services,Transport Related Expense,3105,Tprt : Repairs : General,GO PLANT LIMITED,A0045105, 10/01/2019,OPS0292911,411.58,N,N/A,N,N/A,
Pendle Borough Council,Operational Services,Transport Related Expense,3105,Tprt : Repairs : General,GO PLANT LIMITED,A0045105, 31/01/2019,OPS0293409,29.31,N,N/A,N,N/A,
Pendle Borough Council,Operational Services,Transport Related Expense,3105,Tprt : Repairs : General,GO PLANT LIMITED,A0045105, 31/01/2019,OPS0293397,75.70,N,N/A,N,N/A,
Pendle Borough Council,Operational Services,Transport Related Expense,3105,Tprt : Repairs : General,GO PLANT LIMITED,A0045105, 31/01/2019,OPS0293402,393.79,N,N/A,N,N/A,
Pendle Borough Council,Operational Services,Transport Related Expense,3105,Tprt : Repairs : General,GO PLANT LIMITED,A0045105, 31/01/2019,OPS0293400,929.63,N,N/A,N,N/A,
Pendle Borough Council,Parks & Recreation Services,Transport Related Expense,3105,Tprt : Repairs : General,GO PLANT LIMITED,A0045105, 24/01/2019,PCO0293278,"1,111.47",N,N/A,N,N/A,
Pendle Borough Council,Operational Services,Transport Related Expense,3204,Tyres,GO PLANT LIMITED,A0045105, 31/01/2019,OPS0293398,25.25,N,N/A,N,N/A,
Pendle Borough Council,Operational Services,Transport Related Expense,3204,Tyres,GO PLANT LIMITED,A0045105, 31/01/2019,OPS0293399,33.25,N,N/A,N,N/A,
Pendle Borough Council,Operational Services,Transport Related Expense,3204,Tyres,GO PLANT LIMITED,A0045105, 31/01/2019,OPS0293407,33.25,N,N/A,N,N/A,
Pendle Borough Council,Operational Services,Transport Related Expense,3204,Tyres,GO PLANT LIMITED,A0045105, 31/01/2019,OPS0293408,88.50,N,N/A,N,N/A,
Pendle Borough Council,Operational Services,Transport Related Expense,3204,Tyres,GO PLANT LIMITED,A0045105, 10/01/2019,OPS0292907,91.95,N,N/A,N,N/A,
Pendle Borough Council,Operational Services,Transport Related Expense,3204,Tyres,GO PLANT LIMITED,A0045105, 31/01/2019,OPS0293405,95.40,N,N/A,N,N/A,
Pendle Borough Council,Operational Services,Transport Related Expense,3204,Tyres,GO PLANT LIMITED,A0045105, 31/01/2019,OPS0293404,113.25,N,N/A,N,N/A,
Pendle Borough Council,Operational Services,Transport Related Expense,3204,Tyres,GO PLANT LIMITED,A0045105, 10/01/2019,OPS0292913,58.55,N,N/A,N,N/A,
Pendle Borough Council,Operational Services,Transport Related Expense,3204,Tyres,GO PLANT LIMITED,A0045105, 31/01/2019,OPS0293410,287.63,N,N/A,N,N/A,
Pendle Borough Council,Operational Services,Transport Related Expense,3204,Tyres,GO PLANT LIMITED,A0045105, 10/01/2019,OPS0292912,160.90,N,N/A,N,N/A,
Pendle Borough Council,Operational Services,Transport Related Expense,3204,Tyres,GO PLANT LIMITED,A0045105, 10/01/2019,OPS0292914,52.80,N,N/A,N,N/A,
Pendle Borough Council,Operational Services,Transport Related Expense,3204,Tyres,GO PLANT LIMITED,A0045105, 10/01/2019,OPS0292909,160.90,N,N/A,N,N/A,
Pendle Borough Council,Operational Services,Transport Related Expense,3204,Tyres,GO PLANT LIMITED,A0045105, 31/01/2019,OPS0293411,95.40,N,N/A,N,N/A,
Pendle Borough Council,Operational Services,Transport Related Expense,3601,Tprt : Annual Hire Charge,GO PLANT LIMITED,A0045105, 10/01/2019,OPS0292855,700.00,N,N/A,N,N/A,
Pendle Borough Council,Operational Services,Transport Related Expense,3601,Tprt : Annual Hire Charge,GO PLANT LIMITED,A0045105, 31/01/2019,OPS0293412,"1,500.00",N,N/A,N,N/A,
Pendle Borough Council,Operational Services,Transport Related Expense,3601,Tprt : Annual Hire Charge,GO PLANT LIMITED,A0045105, 24/01/2019,OPS0293290,"1,640.00",N,N/A,N,N/A,
Pendle Borough Council,Operational Services,Transport Related Expense,3601,Tprt : Annual Hire Charge,GO PLANT LIMITED,A0045105, 24/01/2019,OPS0293291,"1,640.00",N,N/A,N,N/A,
Pendle Borough Council,Operational Services,Transport Related Expense,3601,Tprt : Annual Hire Charge,GO PLANT LIMITED,A0045105, 24/01/2019,OPS0293292,"1,640.00",N,N/A,N,N/A,
Pendle Borough Council,Operational Services,Transport Related Expense,3601,Tprt : Annual Hire Charge,GO PLANT LIMITED,A0045105, 24/01/2019,OPS0293293,"1,640.00",N,N/A,N,N/A,
Pendle Borough Council,Parks & Recreation Services,Transport Related Expense,3601,Tprt : Annual Hire Charge,GO PLANT LIMITED,A0045105, 10/01/2019,PCO0292905,100.00,N,N/A,N,N/A,
Pendle Borough Council,Parks & Recreation Services,Transport Related Expense,3601,Tprt : Annual Hire Charge,GO PLANT LIMITED,A0045105, 10/01/2019,PCO0292906,700.00,N,N/A,N,N/A,
Pendle Borough Council,Parks & Recreation Services,Transport Related Expense,3601,Tprt : Annual Hire Charge,GO PLANT LIMITED,A0045105, 10/01/2019,PCO0292965,750.00,N,N/A,N,N/A,
Pendle Borough Council,Operational Services,Transport Related Expense,3601,Tprt : Annual Hire Charge,GO PLANT LIMITED,A0045105, 10/01/2019,OPS0292898,"66,117.29",N,N/A,N,N/A,
Pendle Borough Council,Operational Services,Transport Related Expense,3601,Tprt : Annual Hire Charge,GO PLANT LIMITED,A0045105, 31/01/2019,OPS0293388,"66,707.41",N,N/A,N,N/A,
Pendle Borough Council,Democratic & Legal Services,Supplies and Services,4610,Meeting Expenses,MOUNT ZION BAPTIST CHURCH,A0045270, 10/01/2019,DAL0292994,30.00,N,N/A,N,N/A,
Pendle Borough Council,Economic Development & Tourism,Supplies and Services,4705,Other Expenses,MARKETING LANCASHIRE,A0045273, 10/01/2019,REG0292943,"2,500.00",N,N/A,N,N/A,
Pendle Borough Council,Economic Development & Tourism,Supplies and Services,4706,Subscriptions & Donations,MARKETING LANCASHIRE,A0045273, 10/01/2019,REG0292943,"3,900.00",N,N/A,N,N/A,
Pendle Borough Council,Parks & Recreation Services,Transport Related Expense,3105,Tprt : Repairs : General,BOWCOM,A0045454, 31/01/2019,PCO0293423,7.50,N,N/A,N,N/A,
Pendle Borough Council,Parks & Recreation Services,Transport Related Expense,3105,Tprt : Repairs : General,BOWCOM,A0045454, 31/01/2019,PCO0293423,8.35,N,N/A,N,N/A,
Pendle Borough Council,Parks & Recreation Services,Transport Related Expense,3105,Tprt : Repairs : General,BOWCOM,A0045454, 31/01/2019,PCO0293423,40.50,N,N/A,N,N/A,
Pendle Borough Council,Parks & Recreation Services,Transport Related Expense,3105,Tprt : Repairs : General,BOWCOM,A0045454, 31/01/2019,PCO0293423,57.42,N,N/A,N,N/A,
Pendle Borough Council,Financial Services,Premises Related Expense,2001,Bldgs : R & M : Day To Day,PLUSNET TECHNOLOGIES LIMITED,A0045646, 04/01/2019,AAS0293307,15.00,N,N/A,N,N/A,
Pendle Borough Council,Financial Services,Supplies and Services,4509,Computer Charges,PLUSNET TECHNOLOGIES LIMITED,A0045646, 04/01/2019,AAS0293308,12.49,N,N/A,N,N/A,
Pendle Borough Council,Engineering & Special Projects,Premises Related Expense,2101,Grounds : R & M : Day to Day : Routine,REDACTED - PERSONAL DATA,A0046430, 31/01/2019,HED0293449,2.67,N,N/A,N,N/A,
Pendle Borough Council,Chief Executives Policy Unit,Supplies and Services,4707,Miscellaneous : Other,ELT RADIOTELEPHONES,A0046976, 24/01/2019,COR0293261,100.00,N,N/A,N,N/A,
Pendle Borough Council,Housing Regeneration Services,Supplies and Services,4003,EFM : Other Equipment,LOOP PUBLISHING LTD,A0047429, 17/01/2019,HMR0293129,175.00,N,N/A,N,N/A,
Pendle Borough Council,Financial Services,Premises Related Expense,2203,Electricity,SCOTTISHPOWER GROUP,A0047590, 24/01/2019,AAS0293321,31.14,N,N/A,N,N/A,
Pendle Borough Council,Financial Services,Premises Related Expense,2203,Electricity,SCOTTISHPOWER GROUP,A0047590, 24/01/2019,AAS0293322,55.92,N,N/A,N,N/A,
Pendle Borough Council,Chief Executives Policy Unit,Premises Related Expense,2301,Rents,BLACKBURN DIOCESAN BOARD OF FINANCE LTD,A0049427, 17/01/2019,COR0293013,"2,435.40",N,N/A,N,N/A,
Pendle Borough Council,Chief Executives Policy Unit,Supplies and Services,4705,Other Expenses,BLACKBURN DIOCESAN BOARD OF FINANCE LTD,A0049427, 10/01/2019,COR0293003,100.00,N,N/A,N,N/A,
Pendle Borough Council,Planning & Building Control,Supplies and Services,4003,EFM : Other Equipment,VIP SYSTEM LIMITED,A0050529, 17/01/2019,PBC0293117,59.55,N,N/A,N,N/A,
Pendle Borough Council,Planning & Building Control,Supplies and Services,4003,EFM : Other Equipment,VIP SYSTEM LIMITED,A0050529, 17/01/2019,PBC0293117,130.08,N,N/A,N,N/A,
Pendle Borough Council,Planning & Building Control,Supplies and Services,4003,EFM : Other Equipment,VIP SYSTEM LIMITED,A0050529, 17/01/2019,PBC0293117,146.36,N,N/A,N,N/A,
Pendle Borough Council,Planning & Building Control,Supplies and Services,4003,EFM : Other Equipment,VIP SYSTEM LIMITED,A0050529, 17/01/2019,PBC0293117,59.55,N,N/A,N,N/A,
Pendle Borough Council,Planning & Building Control,Supplies and Services,4003,EFM : Other Equipment,VIP SYSTEM LIMITED,A0050529, 17/01/2019,PBC0293117,130.08,N,N/A,N,N/A,
Pendle Borough Council,Parks & Recreation Services,Premises Related Expense,2001,Bldgs : R & M : Day To Day,NATIONAL ASSOC OF MEMORIAL MASONS,A0050779, 31/01/2019,PCO0293454,220.00,N,N/A,N,N/A,
Pendle Borough Council,Parks & Recreation Services,Transport Related Expense,3204,Tyres,ROSSENDALE VULCANISING (SALES LTD),A0051239, 24/01/2019,PCO0293187,15.00,N,N/A,N,N/A,
Pendle Borough Council,Housing Regeneration Services,Premises Related Expense,2601,Premises Cleaning,ROACH CLEANING & MAINTENANCE SERVICES LTD,A0051553, 31/01/2019,HMR0293415,40.00,N,N/A,N,N/A,
Pendle Borough Council,Human Resources,Indirect Employee Expenses,1221,Recruitment,LIBERATA UK LTD,A0051618, 17/01/2019,PER0293091,150.00,N,N/A,N,N/A,
Pendle Borough Council,Financial Services,Indirect Employee Expenses,1234,Pensions Increase Act Payments,LIBERATA UK LTD,A0051618, 10/01/2019,AAS0293017,-277.51,N,N/A,N,N/A,
Pendle Borough Council,Financial Services,Premises Related Expense,2301,Rents,LIBERATA UK LTD,A0051618, 10/01/2019,AAS0293019,"1,837.00",N,N/A,N,N/A,
Pendle Borough Council,Financial Services,Supplies and Services,4404,Search Fees,LIBERATA UK LTD,A0051618, 10/01/2019,AAS0293018,"13,000.00",N,N/A,N,N/A,
Pendle Borough Council,Financial Services,Agency Costs,5301,Liberata,LIBERATA UK LTD,A0051618, 10/01/2019,AAS0293017,"1,201.00",N,N/A,N,N/A,
Pendle Borough Council,Financial Services,Agency Costs,5301,Liberata,LIBERATA UK LTD,A0051618, 24/01/2019,AAS0293216,"1,516.34",N,N/A,N,N/A,
Pendle Borough Council,Financial Services,Agency Costs,5301,Liberata,LIBERATA UK LTD,A0051618, 24/01/2019,AAS0293215,"4,471.78",N,N/A,N,N/A,
Pendle Borough Council,Financial Services,Agency Costs,5303,Liberata,LIBERATA UK LTD,A0051618, 15/01/2019,AAS0293159,"6,666.67",N,N/A,N,N/A,
Pendle Borough Council,Financial Services,Agency Costs,5303,Liberata,LIBERATA UK LTD,A0051618, 15/01/2019,AAS0293159,"34,032.48",N,N/A,N,N/A,
Pendle Borough Council,Financial Services,Agency Costs,5303,Liberata,LIBERATA UK LTD,A0051618, 15/01/2019,AAS0293159,"26,546.85",N,N/A,N,N/A,
Pendle Borough Council,Financial Services,Agency Costs,5303,Liberata,LIBERATA UK LTD,A0051618, 15/01/2019,AAS0293159,"80,322.47",N,N/A,N,N/A,
Pendle Borough Council,Financial Services,Agency Costs,5303,Liberata,LIBERATA UK LTD,A0051618, 15/01/2019,AAS0293159,"53,683.50",N,N/A,N,N/A,
Pendle Borough Council,Financial Services,Agency Costs,5303,Liberata,LIBERATA UK LTD,A0051618, 15/01/2019,AAS0293159,"79,310.37",N,N/A,N,N/A,
Pendle Borough Council,Financial Services,Agency Costs,5303,Liberata,LIBERATA UK LTD,A0051618, 15/01/2019,AAS0293159,"120,490.99",N,N/A,N,N/A,
Pendle Borough Council,Financial Services,Capital Financing Costs,8204,Lease costs:Computer (Orchard),LIBERATA UK LTD,A0051618, 10/01/2019,AAS0293017,"10,079.24",N,N/A,N,N/A,
Pendle Borough Council,Housing Regeneration Services,Capital Costs,CD14,Capital : Payments,LIBERATA UK LTD,A0051618, 31/01/2019,HMR0293417,714.45,N,N/A,N,N/A,
Pendle Borough Council,Housing Regeneration Services,Capital Costs,CD14,Capital : Payments,LIBERATA UK LTD,A0051618, 31/01/2019,HMR0293416,385.00,N,N/A,N,N/A,
Pendle Borough Council,Economic Development & Tourism,Capital Costs,CD14,Capital : Payments,LIBERATA UK LTD,A0051618, 17/01/2019,REG0293076,"13,345.00",N,N/A,N,N/A,
Pendle Borough Council,Financial Services,Capital Costs,CD14,Capital : Payments,LIBERATA UK LTD,A0051618, 10/01/2019,AAS0293015,997.00,N,N/A,N,N/A,
Pendle Borough Council,Housing Regeneration Services,Capital Costs,CH22,Ren Grant : 1996 Act,LIBERATA UK LTD,A0051618, 10/01/2019,HMR0292958,600.00,N,N/A,N,120,
Pendle Borough Council,Financial Services,Premises Related Expense,2203,Electricity,SOUTHERN ELECTRIC,A0051726, 17/01/2019,AAS0293096,121.78,N,N/A,N,N/A,
Pendle Borough Council,Human Resources,Supplies and Services,4705,Other Expenses,FIDELITI LIMITED,A0052058, 17/01/2019,PER0293092,20.63,N,N/A,N,N/A,
Pendle Borough Council,Property Services,Capital Costs,CD14,Capital : Payments,ALERT FIRE AND SECURITY LIMITED,A0052065, 10/01/2019,EST0292921,887.00,N,N/A,N,N/A,
Pendle Borough Council,Parks & Recreation Services,Premises Related Expense,2001,Bldgs : R & M : Day To Day,C B PRICE & SONS BUILDERS,A0052117, 31/01/2019,PCO0293471,750.00,N,N/A,N,N/A,
Pendle Borough Council,Parks & Recreation Services,Premises Related Expense,2001,Bldgs : R & M : Day To Day,C B PRICE & SONS BUILDERS,A0052117, 10/01/2019,PCO0292857,500.00,N,N/A,N,N/A,
Pendle Borough Council,Parks & Recreation Services,Premises Related Expense,2101,Grounds : R & M : Day to Day : Routine,C B PRICE & SONS BUILDERS,A0052117, 31/01/2019,PCO0293469,"1,300.00",N,N/A,N,N/A,
Pendle Borough Council,Parks & Recreation Services,Premises Related Expense,2101,Grounds : R & M : Day to Day : Routine,C B PRICE & SONS BUILDERS,A0052117, 31/01/2019,PCO0293470,"1,650.00",N,N/A,N,N/A,
Pendle Borough Council,Parks & Recreation Services,Premises Related Expense,2101,Grounds : R & M : Day to Day : Routine,C B PRICE & SONS BUILDERS,A0052117, 10/01/2019,PCO0292856,"3,000.00",N,N/A,N,N/A,
Pendle Borough Council,Planning & Building Control,Supplies and Services,4601,Seminars etc All Costs,REDACTED - PERSONAL DATA,A0052621, 17/01/2019,PBC0293057,6.67,N,N/A,N,N/A,
Pendle Borough Council,Democratic & Legal Services,Supplies and Services,4508,Mobile Phones,O2 (UK) LIMITED,A0053660, 17/01/2019,DAL0293101,9.35,N,N/A,N,N/A,
Pendle Borough Council,Democratic & Legal Services,Supplies and Services,4601,Seminars etc All Costs,REDACTED - PERSONAL DATA,A0054205, 31/01/2019,DAL0293495,12.00,N,N/A,N,N/A,
Pendle Borough Council,Property Services,Indirect Employee Expenses,1261,Staff Refreshments,SIEMENS FINANCIAL SERVICES LIMITED,A0054268, 10/01/2019,EST0292953,260.00,N,N/A,N,N/A,
Pendle Borough Council,Engineering & Special Projects,Capital Costs,CD14,Capital : Payments,KEVIN GUY PLANT HIRE,A0054367, 10/01/2019,HED0292844,580.00,N,N/A,N,N/A,
Pendle Borough Council,Parks & Recreation Services,Premises Related Expense,2101,Grounds : R & M : Day to Day : Routine,A BINNS & CO,A0057121, 31/01/2019,PCO0293463,500.00,N,N/A,N,N/A,
Pendle Borough Council,Parks & Recreation Services,Premises Related Expense,2101,Grounds : R & M : Day to Day : Routine,A BINNS & CO,A0057121, 31/01/2019,PCO0293473,200.00,N,N/A,N,N/A,
Pendle Borough Council,Parks & Recreation Services,Premises Related Expense,2101,Grounds : R & M : Day to Day : Routine,A BINNS & CO,A0057121, 31/01/2019,PCO0293463,"1,000.00",N,N/A,N,N/A,
Pendle Borough Council,Parks & Recreation Services,Premises Related Expense,2101,Grounds : R & M : Day to Day : Routine,A BINNS & CO,A0057121, 31/01/2019,PCO0293463,800.00,N,N/A,N,N/A,
Pendle Borough Council,Financial Services,Premises Related Expense,2202,Gas,BRITISH GAS,A0057202, 31/01/2019,AAS0293387,18.46,N,N/A,N,N/A,
Pendle Borough Council,Financial Services,Premises Related Expense,2202,Gas,BRITISH GAS,A0057202, 31/01/2019,AAS0293385,21.41,N,N/A,N,N/A,
Pendle Borough Council,Financial Services,Premises Related Expense,2202,Gas,BRITISH GAS,A0057202, 31/01/2019,AAS0293386,22.89,N,N/A,N,N/A,
Pendle Borough Council,Financial Services,Premises Related Expense,2202,Gas,BRITISH GAS,A0057202, 31/01/2019,AAS0293384,23.62,N,N/A,N,N/A,
Pendle Borough Council,Financial Services,Supplies and Services,4705,Other Expenses,EQUIFAX LIMITED,A0058121, 10/01/2019,AAS0292975,6.50,N,N/A,N,N/A,
Pendle Borough Council,Operational Services,Supplies and Services,4705,Other Expenses,P LEE WASTE OIL LIMTED,A0058412, 17/01/2019,OPS0293106,820.00,N,N/A,N,N/A,
Pendle Borough Council,Planning & Building Control,,9303,Other Income : Non-VATable,REDACTED - PERSONAL DATA,A0058599, 10/01/2019,PBC0292890,17.66,N,N/A,N,N/A,
Pendle Borough Council,Operational Services,Premises Related Expense,2501,Water & Sewerage,UNITED UTILITIES,A0059246, 24/01/2019,OPS0293178,81.84,N,N/A,N,N/A,
Pendle Borough Council,Operational Services,Premises Related Expense,2501,Water & Sewerage,UNITED UTILITIES,A0059246, 24/01/2019,OPS0293178,81.84,N,N/A,N,N/A,
Pendle Borough Council,Engineering & Special Projects,Agency Costs,5102,Lancashire C C,NSL LIMITED,A0059256, 10/01/2019,HED0292968,"1,336.19",N,N/A,N,N/A,
Pendle Borough Council,Democratic & Legal Services,Supplies and Services,4702,Adverts : Statutory Notice,JPIMEDIA PUBLISHING LIMITED,A0059640, 10/01/2019,DAL0292831,216.00,N,N/A,N,N/A,
Pendle Borough Council,Democratic & Legal Services,Supplies and Services,4702,Adverts : Statutory Notice,JPIMEDIA PUBLISHING LIMITED,A0059640, 10/01/2019,DAL0292832,189.00,N,N/A,N,N/A,
Pendle Borough Council,Democratic & Legal Services,Supplies and Services,4702,Adverts : Statutory Notice,JPIMEDIA PUBLISHING LIMITED,A0059640, 17/01/2019,DAL0293031,189.00,N,N/A,N,N/A,
Pendle Borough Council,Democratic & Legal Services,Supplies and Services,4702,Adverts : Statutory Notice,JPIMEDIA PUBLISHING LIMITED,A0059640, 10/01/2019,DAL0292917,243.00,N,N/A,N,N/A,
Pendle Borough Council,Democratic & Legal Services,Supplies and Services,4702,Adverts : Statutory Notice,JPIMEDIA PUBLISHING LIMITED,A0059640, 24/01/2019,DAL0293157,243.00,N,N/A,N,N/A,
Pendle Borough Council,Democratic & Legal Services,Supplies and Services,4702,Adverts : Statutory Notice,JPIMEDIA PUBLISHING LIMITED,A0059640, 24/01/2019,DAL0293304,243.00,N,N/A,N,N/A,
Pendle Borough Council,Democratic & Legal Services,Supplies and Services,4703,Adverts : Tenders,JPIMEDIA PUBLISHING LIMITED,A0059640, 10/01/2019,DAL0292916,189.00,N,N/A,N,N/A,
Pendle Borough Council,Operational Services,,PD03,Paid in the Year,EXCELSIOR ROTO MOULDING LIMITED,A0059849, 31/01/2019,OPS0293461,440.00,N,N/A,N,N/A,
Pendle Borough Council,Property Services,Supplies and Services,4705,Other Expenses,MAXIGIENE ENVIRONMENTAL SERVICES LTD,A0060911, 10/01/2019,EST0292929,25.00,N,N/A,N,N/A,
Pendle Borough Council,Property Services,Supplies and Services,4705,Other Expenses,MAXIGIENE ENVIRONMENTAL SERVICES LTD,A0060911, 10/01/2019,EST0292930,35.00,N,N/A,N,N/A,
Pendle Borough Council,Property Services,Supplies and Services,4705,Other Expenses,MAXIGIENE ENVIRONMENTAL SERVICES LTD,A0060911, 10/01/2019,EST0292928,792.50,N,N/A,N,N/A,
Pendle Borough Council,Parks & Recreation Services,Premises Related Expense,2001,Bldgs : R & M : Day To Day,SMARTWATER TECHNOLOGY LIMITED,A0060912, 10/01/2019,PCO0292860,42.33,N,N/A,N,N/A,
Pendle Borough Council,Parks & Recreation Services,Premises Related Expense,2001,Bldgs : R & M : Day To Day,SMARTWATER TECHNOLOGY LIMITED,A0060912, 10/01/2019,PCO0292860,84.67,N,N/A,N,N/A,
Pendle Borough Council,Parks & Recreation Services,Premises Related Expense,2001,Bldgs : R & M : Day To Day,SMARTWATER TECHNOLOGY LIMITED,A0060912, 10/01/2019,PCO0292860,84.67,N,N/A,N,N/A,
Pendle Borough Council,Financial Services,,9303,Other Income : Non-VATable,PENDLE HIPPODROME THEATRE LTD,A0060913, 17/01/2019,AAS0293095,20.00,N,N/A,N,N/A,
Pendle Borough Council,Financial Services,Premises Related Expense,2702,Service Charge,PENDLE ENTERPRISE & REGENERATION LTD,A0061803, 24/01/2019,AAS0293217,"4,200.00",N,N/A,N,N/A,
Pendle Borough Council,Housing Regeneration Services,Supplies and Services,4739,Grants/Contributions,PENDLE ENTERPRISE & REGENERATION LTD,A0061803, 24/01/2019,HMR0293204,"2,940.53",N,N/A,N,N/A,
Pendle Borough Council,Financial Services,Transport Related Expense,3601,Tprt : Annual Hire Charge,ARVAL LTD (ALLSTAR FUEL SERVICES),A0062668, 16/01/2019,AAS0293334,126.70,N,N/A,N,N/A,
Pendle Borough Council,Financial Services,Transport Related Expense,3601,Tprt : Annual Hire Charge,ARVAL LTD (ALLSTAR FUEL SERVICES),A0062668, 16/01/2019,AAS0293334,126.70,N,N/A,N,N/A,
Pendle Borough Council,Financial Services,Transport Related Expense,3601,Tprt : Annual Hire Charge,ARVAL LTD (ALLSTAR FUEL SERVICES),A0062668, 16/01/2019,AAS0293334,126.70,N,N/A,N,N/A,
Pendle Borough Council,Financial Services,Transport Related Expense,3601,Tprt : Annual Hire Charge,ARVAL LTD (ALLSTAR FUEL SERVICES),A0062668, 16/01/2019,AAS0293334,126.70,N,N/A,N,N/A,
Pendle Borough Council,Financial Services,Transport Related Expense,3601,Tprt : Annual Hire Charge,ARVAL LTD (ALLSTAR FUEL SERVICES),A0062668, 16/01/2019,AAS0293314,198.19,N,N/A,N,N/A,
Pendle Borough Council,Financial Services,Transport Related Expense,3601,Tprt : Annual Hire Charge,ARVAL LTD (ALLSTAR FUEL SERVICES),A0062668, 16/01/2019,AAS0293314,201.83,N,N/A,N,N/A,
Pendle Borough Council,Financial Services,Transport Related Expense,3601,Tprt : Annual Hire Charge,ARVAL LTD (ALLSTAR FUEL SERVICES),A0062668, 16/01/2019,AAS0293334,126.70,N,N/A,N,N/A,
Pendle Borough Council,Democratic & Legal Services,Transport Related Expense,3105,Tprt : Repairs : General,REDACTED - PERSONAL DATA,A0062864, 17/01/2019,DAL0293136,5.00,N,N/A,N,N/A,
Pendle Borough Council,Democratic & Legal Services,Transport Related Expense,3105,Tprt : Repairs : General,REDACTED - PERSONAL DATA,A0062864, 24/01/2019,DAL0293275,10.00,N,N/A,N,N/A,
Pendle Borough Council,Democratic & Legal Services,Supplies and Services,4202,Uniforms,REDACTED - PERSONAL DATA,A0062864, 10/01/2019,DAL0292998,7.88,N,N/A,N,N/A,
Pendle Borough Council,Democratic & Legal Services,Supplies and Services,4614,Mayoral Expenses,REDACTED - PERSONAL DATA,A0062864, 24/01/2019,DAL0293275,3.33,N,N/A,N,N/A,
Pendle Borough Council,Operational Services,Premises Related Expense,2001,Bldgs : R & M : Day To Day,NORTH WEST TRADING COMPANY,A0063527, 31/01/2019,OPS0293414,25.12,N,N/A,N,N/A,
Pendle Borough Council,Environmental Health Services,Supplies and Services,4003,EFM : Other Equipment,LANCASHIRE BROADCASTING CO LTD,A0064934, 10/01/2019,ENV0292971,300.00,N,N/A,N,N/A,
Pendle Borough Council,Democratic & Legal Services,Supplies and Services,4704,Publicity & advertisement,LANCASHIRE BROADCASTING CO LTD,A0064934, 31/01/2019,DAL0292877,150.00,N,N/A,N,N/A,
Pendle Borough Council,Democratic & Legal Services,Supplies and Services,4704,Publicity & advertisement,LANCASHIRE BROADCASTING CO LTD,A0064934, 10/01/2019,DAL0292878,429.00,N,N/A,N,N/A,
Pendle Borough Council,Democratic & Legal Services,Supplies and Services,4704,Publicity & advertisement,LANCASHIRE BROADCASTING CO LTD,A0064934, 10/01/2019,DAL0292993,429.00,N,N/A,N,N/A,
Pendle Borough Council,Engineering & Special Projects,Capital Costs,CD14,Capital : Payments,THE RAINHALL CENTRE,A0066193, 17/01/2019,HED0293055,75.00,N,N/A,N,N/A,
Pendle Borough Council,Property Services,Premises Related Expense,2001,Bldgs : R & M : Day To Day,SPEAKMAN CONTRACTORS LTD,A0066581, 17/01/2019,EST0293141,100.28,N,N/A,N,N/A,
Pendle Borough Council,Property Services,Premises Related Expense,2001,Bldgs : R & M : Day To Day,SPEAKMAN CONTRACTORS LTD,A0066581, 24/01/2019,EST0293202,108.55,N,N/A,N,N/A,
Pendle Borough Council,Property Services,Premises Related Expense,2001,Bldgs : R & M : Day To Day,SPEAKMAN CONTRACTORS LTD,A0066581, 24/01/2019,EST0293202,213.62,N,N/A,N,N/A,
Pendle Borough Council,Property Services,Premises Related Expense,2001,Bldgs : R & M : Day To Day,SPEAKMAN CONTRACTORS LTD,A0066581, 24/01/2019,EST0293202,79.40,N,N/A,N,N/A,
Pendle Borough Council,Property Services,Premises Related Expense,2001,Bldgs : R & M : Day To Day,SPEAKMAN CONTRACTORS LTD,A0066581, 24/01/2019,EST0293202,61.17,N,N/A,N,N/A,
Pendle Borough Council,Property Services,Premises Related Expense,2001,Bldgs : R & M : Day To Day,SPEAKMAN CONTRACTORS LTD,A0066581, 24/01/2019,EST0293202,30.16,N,N/A,N,N/A,
Pendle Borough Council,Property Services,Premises Related Expense,2001,Bldgs : R & M : Day To Day,SPEAKMAN CONTRACTORS LTD,A0066581, 24/01/2019,EST0293202,79.40,N,N/A,N,N/A,
Pendle Borough Council,Property Services,Premises Related Expense,2001,Bldgs : R & M : Day To Day,SPEAKMAN CONTRACTORS LTD,A0066581, 24/01/2019,EST0293202,50.08,N,N/A,N,N/A,
Pendle Borough Council,Property Services,Premises Related Expense,2001,Bldgs : R & M : Day To Day,SPEAKMAN CONTRACTORS LTD,A0066581, 24/01/2019,EST0293202,101.13,N,N/A,N,N/A,
Pendle Borough Council,Property Services,Premises Related Expense,2001,Bldgs : R & M : Day To Day,SPEAKMAN CONTRACTORS LTD,A0066581, 24/01/2019,EST0293202,113.86,N,N/A,N,N/A,
Pendle Borough Council,Property Services,Premises Related Expense,2001,Bldgs : R & M : Day To Day,SPEAKMAN CONTRACTORS LTD,A0066581, 24/01/2019,EST0293202,35.09,N,N/A,N,N/A,
Pendle Borough Council,Property Services,Premises Related Expense,2001,Bldgs : R & M : Day To Day,SPEAKMAN CONTRACTORS LTD,A0066581, 24/01/2019,EST0293202,79.40,N,N/A,N,N/A,
Pendle Borough Council,Property Services,Premises Related Expense,2001,Bldgs : R & M : Day To Day,SPEAKMAN CONTRACTORS LTD,A0066581, 17/01/2019,EST0293141,90.44,N,N/A,N,N/A,
Pendle Borough Council,Property Services,Premises Related Expense,2001,Bldgs : R & M : Day To Day,SPEAKMAN CONTRACTORS LTD,A0066581, 17/01/2019,EST0293141,204.27,N,N/A,N,N/A,
Pendle Borough Council,Property Services,Premises Related Expense,2001,Bldgs : R & M : Day To Day,SPEAKMAN CONTRACTORS LTD,A0066581, 24/01/2019,EST0293202,197.81,N,N/A,N,N/A,
Pendle Borough Council,Property Services,Premises Related Expense,2001,Bldgs : R & M : Day To Day,SPEAKMAN CONTRACTORS LTD,A0066581, 17/01/2019,EST0293141,294.57,N,N/A,N,N/A,
Pendle Borough Council,Property Services,Premises Related Expense,2001,Bldgs : R & M : Day To Day,SPEAKMAN CONTRACTORS LTD,A0066581, 17/01/2019,EST0293141,889.00,N,N/A,N,N/A,
Pendle Borough Council,Property Services,Premises Related Expense,2001,Bldgs : R & M : Day To Day,SPEAKMAN CONTRACTORS LTD,A0066581, 24/01/2019,EST0293202,205.35,N,N/A,N,N/A,
Pendle Borough Council,Property Services,Premises Related Expense,2001,Bldgs : R & M : Day To Day,SPEAKMAN CONTRACTORS LTD,A0066581, 17/01/2019,EST0293141,36.77,N,N/A,N,N/A,
Pendle Borough Council,Property Services,Premises Related Expense,2001,Bldgs : R & M : Day To Day,SPEAKMAN CONTRACTORS LTD,A0066581, 17/01/2019,EST0293141,428.04,N,N/A,N,N/A,
Pendle Borough Council,Property Services,Premises Related Expense,2005,Bldgs : Vandalism Repairs,SPEAKMAN CONTRACTORS LTD,A0066581, 24/01/2019,EST0293202,596.36,N,N/A,N,N/A,
Pendle Borough Council,Property Services,Premises Related Expense,2005,Bldgs : Vandalism Repairs,SPEAKMAN CONTRACTORS LTD,A0066581, 24/01/2019,EST0293202,55.16,N,N/A,N,N/A,
Pendle Borough Council,Property Services,Premises Related Expense,2101,Grounds : R & M : Day to Day : Routine,SPEAKMAN CONTRACTORS LTD,A0066581, 24/01/2019,EST0293202,"1,272.25",N,N/A,N,N/A,
Pendle Borough Council,Property Services,Capital Costs,CD14,Capital : Payments,SPEAKMAN CONTRACTORS LTD,A0066581, 24/01/2019,EST0293202,303.36,N,N/A,N,N/A,
Pendle Borough Council,Property Services,Capital Costs,cd14,Capital : Payments,SPEAKMAN CONTRACTORS LTD,A0066581, 17/01/2019,EST0293143,"1,567.15",N,N/A,N,N/A,
Pendle Borough Council,Property Services,Capital Costs,CD14,Capital : Payments,SPEAKMAN CONTRACTORS LTD,A0066581, 24/01/2019,EST0293198,"1,898.00",N,N/A,N,N/A,
Pendle Borough Council,Human Resources,Indirect Employee Expenses,1236,Emp : Medical Expenses,PEOPLE ASSET MANAGEMENT LIMITED,A0067613, 31/01/2019,PER0293381,110.00,N,N/A,N,N/A,
Pendle Borough Council,Human Resources,Indirect Employee Expenses,1236,Emp : Medical Expenses,PEOPLE ASSET MANAGEMENT LIMITED,A0067613, 31/01/2019,PER0293381,317.68,N,N/A,N,N/A,
Pendle Borough Council,Operational Services,Transport Related Expense,3105,Tprt : Repairs : General,PROBRUSH T/A NORTHERN MUNICIPAL SPARES LTD,A0068263, 24/01/2019,OPS0293176,38.51,N,N/A,N,N/A,
Pendle Borough Council,Operational Services,Transport Related Expense,3105,Tprt : Repairs : General,PROBRUSH T/A NORTHERN MUNICIPAL SPARES LTD,A0068263, 31/01/2019,OPS0293459,170.50,N,N/A,N,N/A,
Pendle Borough Council,Operational Services,Transport Related Expense,3105,Tprt : Repairs : General,PROBRUSH T/A NORTHERN MUNICIPAL SPARES LTD,A0068263, 24/01/2019,OPS0293176,38.50,N,N/A,N,N/A,
Pendle Borough Council,Operational Services,Transport Related Expense,3105,Tprt : Repairs : General,PROBRUSH T/A NORTHERN MUNICIPAL SPARES LTD,A0068263, 31/01/2019,OPS0293459,170.51,N,N/A,N,N/A,
Pendle Borough Council,Operational Services,Transport Related Expense,3105,Tprt : Repairs : General,PROBRUSH T/A NORTHERN MUNICIPAL SPARES LTD,A0068263, 24/01/2019,OPS0293176,38.51,N,N/A,N,N/A,
Pendle Borough Council,Operational Services,Transport Related Expense,3105,Tprt : Repairs : General,PROBRUSH T/A NORTHERN MUNICIPAL SPARES LTD,A0068263, 31/01/2019,OPS0293459,170.51,N,N/A,N,N/A,
Pendle Borough Council,Operational Services,Transport Related Expense,3105,Tprt : Repairs : General,PROBRUSH T/A NORTHERN MUNICIPAL SPARES LTD,A0068263, 24/01/2019,OPS0293176,38.50,N,N/A,N,N/A,
Pendle Borough Council,Operational Services,Transport Related Expense,3105,Tprt : Repairs : General,PROBRUSH T/A NORTHERN MUNICIPAL SPARES LTD,A0068263, 31/01/2019,OPS0293459,170.50,N,N/A,N,N/A,
Pendle Borough Council,Operational Services,Transport Related Expense,3105,Tprt : Repairs : General,PROBRUSH T/A NORTHERN MUNICIPAL SPARES LTD,A0068263, 24/01/2019,OPS0293176,38.51,N,N/A,N,N/A,
Pendle Borough Council,Operational Services,Transport Related Expense,3105,Tprt : Repairs : General,PROBRUSH T/A NORTHERN MUNICIPAL SPARES LTD,A0068263, 31/01/2019,OPS0293459,170.50,N,N/A,N,N/A,
Pendle Borough Council,Operational Services,Transport Related Expense,3105,Tprt : Repairs : General,PROBRUSH T/A NORTHERN MUNICIPAL SPARES LTD,A0068263, 24/01/2019,OPS0293176,38.50,N,N/A,N,N/A,
Pendle Borough Council,Operational Services,Transport Related Expense,3105,Tprt : Repairs : General,PROBRUSH T/A NORTHERN MUNICIPAL SPARES LTD,A0068263, 31/01/2019,OPS0293459,170.50,N,N/A,N,N/A,
Pendle Borough Council,Engineering & Special Projects,Supplies and Services,4424,Prcocessing Fees,CHIPSIDE LTD,A0068587, 10/01/2019,HED0292966,10.39,N,N/A,N,N/A,
Pendle Borough Council,Engineering & Special Projects,Supplies and Services,4424,Prcocessing Fees,CHIPSIDE LTD,A0068587, 24/01/2019,HED0293163,21.60,N,N/A,N,N/A,
Pendle Borough Council,Engineering & Special Projects,Supplies and Services,4424,Prcocessing Fees,CHIPSIDE LTD,A0068587, 24/01/2019,HED0293164,209.52,N,N/A,N,N/A,
Pendle Borough Council,Engineering & Special Projects,Supplies and Services,4424,Prcocessing Fees,CHIPSIDE LTD,A0068587, 10/01/2019,HED0292882,270.84,N,N/A,N,N/A,
Pendle Borough Council,Parks & Recreation Services,Premises Related Expense,2101,Grounds : R & M : Day to Day : Routine,M C & M A STEWART HAULAGE,A0068863, 10/01/2019,PCO0292970,309.85,N,N/A,N,N/A,
Pendle Borough Council,Property Services,Premises Related Expense,2203,Electricity,ELECTRICITY NORTH WEST LIMITED,A0068905, 31/01/2019,EST0293367,900.72,N,N/A,N,N/A,
Pendle Borough Council,Financial Services,Premises Related Expense,2203,Electricity,BRITISH GAS BUSINESS,A0069538, 24/01/2019,AAS0293233,55.35,N,N/A,N,N/A,
Pendle Borough Council,Financial Services,Premises Related Expense,2203,Electricity,BRITISH GAS BUSINESS,A0069538, 24/01/2019,AAS0293234,73.98,N,N/A,N,N/A,
Pendle Borough Council,Financial Services,Premises Related Expense,2203,Electricity,BRITISH GAS BUSINESS,A0069538, 24/01/2019,AAS4005992,-84.50,N,N/A,N,N/A,
Pendle Borough Council,Financial Services,Premises Related Expense,2203,Electricity,BRITISH GAS BUSINESS,A0069538, 24/01/2019,AAS4005990,-71.53,N,N/A,N,N/A,
Pendle Borough Council,Financial Services,Premises Related Expense,2203,Electricity,BRITISH GAS BUSINESS,A0069538, 24/01/2019,AAS4005991,-65.16,N,N/A,N,N/A,
Pendle Borough Council,Financial Services,Premises Related Expense,2203,Electricity,BRITISH GAS BUSINESS,A0069538, 24/01/2019,AAS4005993,-54.74,N,N/A,N,N/A,
Pendle Borough Council,Financial Services,Premises Related Expense,2203,Electricity,BRITISH GAS BUSINESS,A0069538, 23/01/2019,AAS0293335,7.92,N,N/A,N,N/A,
Pendle Borough Council,Financial Services,Premises Related Expense,2203,Electricity,BRITISH GAS BUSINESS,A0069538, 24/01/2019,AAS0293256,12.05,N,N/A,N,N/A,
Pendle Borough Council,Financial Services,Premises Related Expense,2203,Electricity,BRITISH GAS BUSINESS,A0069538, 24/01/2019,AAS0293255,25.93,N,N/A,N,N/A,
Pendle Borough Council,Financial Services,Premises Related Expense,2203,Electricity,BRITISH GAS BUSINESS,A0069538, 24/01/2019,AAS0293227,487.98,N,N/A,N,N/A,
Pendle Borough Council,Financial Services,Premises Related Expense,2203,Electricity,BRITISH GAS BUSINESS,A0069538, 24/01/2019,AAS0293244,38.31,N,N/A,N,N/A,
Pendle Borough Council,Financial Services,Premises Related Expense,2203,Electricity,BRITISH GAS BUSINESS,A0069538, 24/01/2019,AAS0293239,179.07,N,N/A,N,N/A,
Pendle Borough Council,Financial Services,Premises Related Expense,2203,Electricity,BRITISH GAS BUSINESS,A0069538, 24/01/2019,AAS0293258,133.23,N,N/A,N,N/A,
Pendle Borough Council,Financial Services,Premises Related Expense,2203,Electricity,BRITISH GAS BUSINESS,A0069538, 24/01/2019,AAS0293257,18.72,N,N/A,N,N/A,
Pendle Borough Council,Financial Services,Premises Related Expense,2203,Electricity,BRITISH GAS BUSINESS,A0069538, 29/01/2019,AAS0293514,183.05,N,N/A,N,N/A,
Pendle Borough Council,Financial Services,Premises Related Expense,2203,Electricity,BRITISH GAS BUSINESS,A0069538, 24/01/2019,AAS0293230,26.24,N,N/A,N,N/A,
Pendle Borough Council,Financial Services,Premises Related Expense,2203,Electricity,BRITISH GAS BUSINESS,A0069538, 24/01/2019,AAS0293229,31.93,N,N/A,N,N/A,
Pendle Borough Council,Financial Services,Premises Related Expense,2203,Electricity,BRITISH GAS BUSINESS,A0069538, 24/01/2019,AAS0293242,264.02,N,N/A,N,N/A,
Pendle Borough Council,Financial Services,Premises Related Expense,2203,Electricity,BRITISH GAS BUSINESS,A0069538, 04/01/2019,AAS0293309,64.05,N,N/A,N,N/A,
Pendle Borough Council,Financial Services,Premises Related Expense,2203,Electricity,BRITISH GAS BUSINESS,A0069538, 24/01/2019,AAS0293250,7.30,N,N/A,N,N/A,
Pendle Borough Council,Financial Services,Premises Related Expense,2203,Electricity,BRITISH GAS BUSINESS,A0069538, 24/01/2019,AAS0293225,111.40,N,N/A,N,N/A,
Pendle Borough Council,Financial Services,Premises Related Expense,2203,Electricity,BRITISH GAS BUSINESS,A0069538, 24/01/2019,AAS0293238,135.42,N,N/A,N,N/A,
Pendle Borough Council,Financial Services,Premises Related Expense,2203,Electricity,BRITISH GAS BUSINESS,A0069538, 24/01/2019,AAS0293236,238.56,N,N/A,N,N/A,
Pendle Borough Council,Financial Services,Premises Related Expense,2203,Electricity,BRITISH GAS BUSINESS,A0069538, 24/01/2019,AAS0293235,26.30,N,N/A,N,N/A,
Pendle Borough Council,Financial Services,Premises Related Expense,2203,Electricity,BRITISH GAS BUSINESS,A0069538, 24/01/2019,AAS0293224,8.53,N,N/A,N,N/A,
Pendle Borough Council,Financial Services,Premises Related Expense,2203,Electricity,BRITISH GAS BUSINESS,A0069538, 24/01/2019,AAS0293232,156.00,N,N/A,N,N/A,
Pendle Borough Council,Financial Services,Premises Related Expense,2203,Electricity,BRITISH GAS BUSINESS,A0069538, 24/01/2019,AAS0293223,13.92,N,N/A,N,N/A,
Pendle Borough Council,Financial Services,Premises Related Expense,2203,Electricity,BRITISH GAS BUSINESS,A0069538, 24/01/2019,AAS0293243,15.02,N,N/A,N,N/A,
Pendle Borough Council,Financial Services,Premises Related Expense,2203,Electricity,BRITISH GAS BUSINESS,A0069538, 24/01/2019,AAS0293252,53.33,N,N/A,N,N/A,
Pendle Borough Council,Financial Services,Premises Related Expense,2203,Electricity,BRITISH GAS BUSINESS,A0069538, 24/01/2019,AAS0293247,67.43,N,N/A,N,N/A,
Pendle Borough Council,Financial Services,Premises Related Expense,2203,Electricity,BRITISH GAS BUSINESS,A0069538, 24/01/2019,AAS0293246,65.41,N,N/A,N,N/A,
Pendle Borough Council,Financial Services,Premises Related Expense,2203,Electricity,BRITISH GAS BUSINESS,A0069538, 24/01/2019,AAS0293226,229.53,N,N/A,N,N/A,
Pendle Borough Council,Financial Services,Premises Related Expense,2203,Electricity,BRITISH GAS BUSINESS,A0069538, 24/01/2019,AAS0293249,3.59,N,N/A,N,N/A,
Pendle Borough Council,Financial Services,Premises Related Expense,2203,Electricity,BRITISH GAS BUSINESS,A0069538, 24/01/2019,AAS0293237,144.78,N,N/A,N,N/A,
Pendle Borough Council,Financial Services,Premises Related Expense,2203,Electricity,BRITISH GAS BUSINESS,A0069538, 24/01/2019,AAS0293240,12.26,N,N/A,N,N/A,
Pendle Borough Council,Financial Services,Premises Related Expense,2203,Electricity,BRITISH GAS BUSINESS,A0069538, 24/01/2019,AAS0293228,65.89,N,N/A,N,N/A,
Pendle Borough Council,Financial Services,Premises Related Expense,2203,Electricity,BRITISH GAS BUSINESS,A0069538, 24/01/2019,AAS0293248,19.07,N,N/A,N,N/A,
Pendle Borough Council,Financial Services,Premises Related Expense,2203,Electricity,BRITISH GAS BUSINESS,A0069538, 24/01/2019,AAS0293245,90.98,N,N/A,N,N/A,
Pendle Borough Council,Financial Services,Premises Related Expense,2203,Electricity,BRITISH GAS BUSINESS,A0069538, 24/01/2019,AAS0293254,555.22,N,N/A,N,N/A,
Pendle Borough Council,Financial Services,Premises Related Expense,2203,Electricity,BRITISH GAS BUSINESS,A0069538, 24/01/2019,AAS0293253,638.21,N,N/A,N,N/A,
Pendle Borough Council,Financial Services,Supplies and Services,4705,Other Expenses,BRITISH GAS BUSINESS,A0069538, 24/01/2019,AAS0293241,12.26,N,N/A,N,N/A,
Pendle Borough Council,Financial Services,Supplies and Services,4705,Other Expenses,BRITISH GAS BUSINESS,A0069538, 24/01/2019,AAS0293231,36.47,N,N/A,N,N/A,
Pendle Borough Council,Parks & Recreation Services,Transport Related Expense,3105,Tprt : Repairs : General,GUY MACHINERY LIMITED,A0070711, 10/01/2019,PCO0292957,14.75,N,N/A,N,N/A,
Pendle Borough Council,Parks & Recreation Services,Transport Related Expense,3105,Tprt : Repairs : General,GUY MACHINERY LIMITED,A0070711, 10/01/2019,PCO0292957,56.00,N,N/A,N,N/A,
Pendle Borough Council,Financial Services,Supplies and Services,4007,Sub-Contractors,QHS SOLUTIONS LIMITED,A0071912, 02/01/2019,AAS0293305,666.67,N,N/A,N,N/A,
Pendle Borough Council,Operational Services,Supplies and Services,4007,Sub-Contractors,QHS SOLUTIONS LIMITED,A0071912, 31/01/2019,OPS0293394,360.00,N,N/A,N,N/A,
Pendle Borough Council,Environmental Health Services,Supplies and Services,4409,Tests & Inspection Fees,UNITED UTILITIES WATER PLC,A0072400, 31/01/2019,ENV0293419,119.10,N,N/A,N,N/A,
Pendle Borough Council,Housing Regeneration Services,Supplies and Services,4409,Tests & Inspection Fees,UNITED UTILITIES WATER PLC,A0072400, 10/01/2019,HMR0293008,181.60,N,N/A,N,N/A,
Pendle Borough Council,Financial Services,Supplies and Services,4421,Credit card and online charges,GLOBAL PAYMENTS,A0072461, 17/01/2019,AAS0293315,7.00,N,N/A,N,N/A,
Pendle Borough Council,Financial Services,Supplies and Services,4421,Credit card and online charges,GLOBAL PAYMENTS,A0072461, 17/01/2019,AAS0293316,7.00,N,N/A,N,N/A,
Pendle Borough Council,Financial Services,Supplies and Services,4421,Credit card and online charges,GLOBAL PAYMENTS,A0072461, 17/01/2019,AAS0293317,7.00,N,N/A,N,N/A,
Pendle Borough Council,Financial Services,Supplies and Services,4421,Credit card and online charges,GLOBAL PAYMENTS,A0072461, 17/01/2019,AAS0293316,24.00,N,N/A,N,N/A,
Pendle Borough Council,Financial Services,Supplies and Services,4421,Credit card and online charges,GLOBAL PAYMENTS,A0072461, 17/01/2019,AAS0293317,29.00,N,N/A,N,N/A,
Pendle Borough Council,Financial Services,Support Services,7201,Bank Charges,LLOYDS BANKING GROUP,A0072462, 25/01/2019,AAS0293425,15.00,N,N/A,N,N/A,
Pendle Borough Council,Financial Services,Support Services,7201,Bank Charges,LLOYDS BANKING GROUP,A0072462, 25/01/2019,AAS0293425,50.00,N,N/A,N,N/A,
Pendle Borough Council,Operational Services,Supplies and Services,4007,Sub-Contractors,CANNON HYGIENE LIMITED,A0072816, 17/01/2019,OPS0293081,6.39,N,N/A,N,N/A,
Pendle Borough Council,Operational Services,Supplies and Services,4007,Sub-Contractors,CANNON HYGIENE LIMITED,A0072816, 17/01/2019,OPS0293079,151.84,N,N/A,N,N/A,
Pendle Borough Council,Operational Services,Supplies and Services,4007,Sub-Contractors,CANNON HYGIENE LIMITED,A0072816, 17/01/2019,OPS0293082,2.13,N,N/A,N,N/A,
Pendle Borough Council,Operational Services,Supplies and Services,4007,Sub-Contractors,CANNON HYGIENE LIMITED,A0072816, 17/01/2019,OPS0293080,4.26,N,N/A,N,N/A,
Pendle Borough Council,Engineering & Special Projects,Premises Related Expense,2101,Grounds : R & M : Day to Day : Routine,KEDEL LIMITED,A0072819, 31/01/2019,HED0293448,150.38,N,N/A,N,N/A,
Pendle Borough Council,Engineering & Special Projects,Premises Related Expense,2101,Grounds : R & M : Day to Day : Routine,KEDEL LIMITED,A0072819, 31/01/2019,HED0293448,206.25,N,N/A,N,N/A,
Pendle Borough Council,Operational Services,Supplies and Services,4007,Sub-Contractors,TCS (WASTE) LIMITED,A0072822, 10/01/2019,OPS0292979,140.00,N,N/A,N,N/A,
Pendle Borough Council,Parks & Recreation Services,Premises Related Expense,2101,Grounds : R & M : Day to Day : Routine,FENLAND LEISURE PRODUCTS LIMITED,A0072950, 31/01/2019,PCO0293466,172.00,N,N/A,N,N/A,
Pendle Borough Council,Financial Services,Indirect Employee Expenses,1221,Recruitment,DBS,A0072958, 18/01/2019,AAS0293336,704.00,N,N/A,N,N/A,
Pendle Borough Council,Financial Services,Supplies and Services,4705,Other Expenses,DBS,A0072958, 18/01/2019,AAS0293336,"1,012.00",N,N/A,N,N/A,
Pendle Borough Council,Financial Services,Supplies and Services,4421,Credit card and online charges,LLOYDS BANK CARDNET,A0074460, 14/01/2019,AAS0293310,313.37,N,N/A,N,N/A,
Pendle Borough Council,Financial Services,Supplies and Services,4421,Credit card and online charges,LLOYDS BANK CARDNET,A0074460, 14/01/2019,AAS0293311,459.32,N,N/A,N,N/A,
Pendle Borough Council,Financial Services,Supplies and Services,4421,Credit card and online charges,LLOYDS BANK CARDNET,A0074460, 14/01/2019,AAS0293312,980.18,N,N/A,N,N/A,
Pendle Borough Council,Operational Services,Agency Costs,5005,Refuse Collection DLO,C & C PROCESS SERVERS,A0074728, 31/01/2019,OPS0293446,60.00,N,N/A,N,N/A,
Pendle Borough Council,Operational Services,Agency Costs,5005,Refuse Collection DLO,C & C PROCESS SERVERS,A0074728, 31/01/2019,OPS0293446,60.00,N,N/A,N,N/A,
Pendle Borough Council,Parks & Recreation Services,Supplies and Services,0002,Expenditure : Materials,FLEET (LINE MARKERS) LIMITED,A0075352, 10/01/2019,PCO0292902,53.25,N,N/A,N,N/A,
Pendle Borough Council,Parks & Recreation Services,Supplies and Services,0002,Expenditure : Materials,FLEET (LINE MARKERS) LIMITED,A0075352, 24/01/2019,PCO0293186,"1,322.10",N,N/A,N,N/A,
Pendle Borough Council,Chief Executives Policy Unit,Transport Related Expense,3802,Car Allows : Offs : Casual,REDACTED - PERSONAL DATA,A0076703, 17/01/2019,COR0293077,1.42,N,N/A,N,N/A,
Pendle Borough Council,Democratic & Legal Services,Supplies and Services,4601,Seminars etc All Costs,REDACTED - PERSONAL DATA,A0076727, 24/01/2019,DAL0293156,3.75,N,N/A,N,N/A,
Pendle Borough Council,Engineering & Special Projects,,PD03,Paid in the Year,ARROWLINE,A0077222, 17/01/2019,HED0293025,140.00,N,N/A,N,N/A,
Pendle Borough Council,Engineering & Special Projects,,PD03,Paid in the Year,ARROWLINE,A0077222, 17/01/2019,HED0293025,210.00,N,N/A,N,N/A,
Pendle Borough Council,Planning & Building Control,Supplies and Services,4304,Reference Books Acts,THOMSON REUTERS PROFESSIONAL UK LIMITED,A0077400, 31/01/2019,PBC0293325,59.00,N,N/A,N,N/A,
Pendle Borough Council,Planning & Building Control,Supplies and Services,4304,Reference Books Acts,THOMSON REUTERS PROFESSIONAL UK LIMITED,A0077400, 31/01/2019,PBC0293325,650.21,N,N/A,N,N/A,
Pendle Borough Council,Planning & Building Control,Supplies and Services,4401,Consultants Fees,THOMSON REUTERS PROFESSIONAL UK LIMITED,A0077400, 31/01/2019,PBC0293325,"2,227.79",N,N/A,N,N/A,
Pendle Borough Council,Housing Regeneration Services,Capital Costs,CD14,Capital : Payments,FOULRIDGE PARISH COUNCIL,A0077715, 24/01/2019,HMR0293301,"1,000.00",N,N/A,N,N/A,
Pendle Borough Council,Housing Regeneration Services,Supplies and Services,4003,EFM : Other Equipment,KINGS WASHING MACHINE RENTALS,A0079878, 24/01/2019,HMR0293299,55.00,N,N/A,N,N/A,
Pendle Borough Council,Engineering & Special Projects,Supplies and Services,4004,EFM Materials,REDACTED - PERSONAL DATA,A0080084, 17/01/2019,HED0293125,100.00,N,N/A,N,N/A,
Pendle Borough Council,Economic Development & Tourism,Supplies and Services,4705,Other Expenses,HANDFORD DESIGN,A0080086, 10/01/2019,REG0292885,"4,995.00",N,N/A,N,N/A,
Pendle Borough Council,Chief Executives Policy Unit,Supplies and Services,4705,Other Expenses,POSITIVE ACTION IN THE COMMUNITY,A0081553, 10/01/2019,COR0292879,700.00,Y,1088536,N,N/A,
Pendle Borough Council,Housing Regeneration Services,Supplies and Services,4401,Consultants Fees,CALICO ENTERPRISE,A0082574, 24/01/2019,HMR0293300,924.80,N,N/A,N,N/A,
Pendle Borough Council,Housing Regeneration Services,Supplies and Services,4401,Consultants Fees,CALICO ENTERPRISE,A0082574, 24/01/2019,HMR0293302,"3,468.00",N,N/A,N,N/A,
Pendle Borough Council,Financial Services,Supplies and Services,4403,Court Fees,HM COURTS & TRIBUNALS SERVICE,A0083319, 16/01/2019,AAS0293313,475.00,N,N/A,N,N/A,
Pendle Borough Council,Housing Regeneration Services,Transfer Payments,6103,Accommodation ,JAYS PROPERTIES SUPPORT,A0084041, 10/01/2019,HMR0293006,60.00,N,N/A,N,N/A,
Pendle Borough Council,Democratic & Legal Services,Transport Related Expense,3501,Hire of Transport,REDACTED - PERSONAL DATA,A0084247, 10/01/2019,DAL0292833,44.00,N,N/A,N,N/A,
Pendle Borough Council,Financial Services,Supplies and Services,4422,Allpay,ALLPAY LIMITED,A0084372, 10/01/2019,AAS0292985,10.37,N,N/A,N,N/A,
Pendle Borough Council,Financial Services,Supplies and Services,4422,Allpay,ALLPAY LIMITED,A0084372, 10/01/2019,AAS0292984,10.82,N,N/A,N,N/A,
Pendle Borough Council,Financial Services,Supplies and Services,4422,Allpay,ALLPAY LIMITED,A0084372, 10/01/2019,AAS0292983,24.21,N,N/A,N,N/A,
Pendle Borough Council,Financial Services,Supplies and Services,4422,Allpay,ALLPAY LIMITED,A0084372, 10/01/2019,AAS0292982,35.36,N,N/A,N,N/A,
Pendle Borough Council,Financial Services,Supplies and Services,4422,Allpay,ALLPAY LIMITED,A0084372, 10/01/2019,AAS0292981,75.54,N,N/A,N,N/A,
Pendle Borough Council,Financial Services,Supplies and Services,4422,Allpay,ALLPAY LIMITED,A0084372, 10/01/2019,AAS0292976,"2,423.07",N,N/A,N,N/A,
Pendle Borough Council,Revenues Services,,9302,Fees Income : Non-VATable,WILKIN CHAPMAN LLP,A0084376, 10/01/2019,TRE0292962,12.00,N,N/A,N,N/A,
Pendle Borough Council,Economic Development & Tourism,Supplies and Services,4739,Grants/Contributions,NORTHPOINT PUBLISHING LIMITED,A0084858, 10/01/2019,REG0292886,"5,000.00",N,N/A,N,N/A,
Pendle Borough Council,Engineering & Special Projects,Premises Related Expense,2101,Grounds : R & M : Day to Day : Routine,KEVIN WILKINSON LANDSCAPES LTD,A0085660, 10/01/2019,HED0292881,176.00,N,N/A,N,N/A,
Pendle Borough Council,Property Services,Premises Related Expense,2202,Gas,OPUS ENERGY LIMITED,A0086092, 24/01/2019,EST0293214,8.33,N,N/A,N,N/A,
Pendle Borough Council,Housing Regeneration Services,Transfer Payments,6104,Storage & Homelessness prevention,1ST CLASS REMOVALS,A0086845, 10/01/2019,HMR0292838,90.00,N,N/A,N,N/A,
Pendle Borough Council,Engineering & Special Projects,,PD03,Paid in the Year,MARCHBRIDGE BUILDERS LIMITED,A0087284, 17/01/2019,HED0293027,"1,150.00",N,N/A,N,N/A,
Pendle Borough Council,Human Resources,Indirect Employee Expenses,1236,Emp : Medical Expenses,HEALTH BUSINESS LIMITED,A0088933, 17/01/2019,PER0293093,85.00,N,N/A,N,N/A,
Pendle Borough Council,Human Resources,Indirect Employee Expenses,1236,Emp : Medical Expenses,HEALTH BUSINESS LIMITED,A0088933, 17/01/2019,PER0293093,180.00,N,N/A,N,N/A,
Pendle Borough Council,Financial Services,Supplies and Services,4401,Consultants Fees,AURORA ACCOUNTING SERVICES,A0089134, 17/01/2019,AAS0293144,"1,590.00",N,N/A,N,N/A,
Pendle Borough Council,Property Services,Capital Costs,CD14,Capital : Payments,CATCHPOINT (UK) LIMITED,A0089500, 24/01/2019,EST0293195,"4,975.00",N,N/A,N,N/A,
Pendle Borough Council,Operational Services,Indirect Employee Expenses,1270,Lone Worker Monitoring Service,SOLOPROTECT LIMITED,A0089719, 10/01/2019,OPS0292852,11.06,N,N/A,N,N/A,
Pendle Borough Council,Operational Services,Indirect Employee Expenses,1270,Lone Worker Monitoring Service,SOLOPROTECT LIMITED,A0089719, 10/01/2019,OPS0292851,394.80,N,N/A,N,N/A,
Pendle Borough Council,Environmental Health Services,Supplies and Services,4705,Other Expenses,SOLOPROTECT LIMITED,A0089719, 10/01/2019,ENV0292883,44.24,N,N/A,N,N/A,
Pendle Borough Council,Environmental Health Services,Supplies and Services,4705,Other Expenses,SOLOPROTECT LIMITED,A0089719, 31/01/2019,ENV0293418,45.36,N,N/A,N,N/A,
Pendle Borough Council,Engineering & Special Projects,,PD03,Paid in the Year,O`CALLAGHAN LIMITED,A0090052, 24/01/2019,HED0293167,"7,937.73",N,N/A,N,N/A,
Pendle Borough Council,Parks & Recreation Services,Transport Related Expense,3502,Hire of Plant,B & W PLANT HIRE AND SALES LTD,A0090057, 10/01/2019,PCO0292969,135.00,N,N/A,N,N/A,
Pendle Borough Council,Operational Services,Agency Staff,1004,Emp : Agency Wages,RAPID RECRUIT LIMITED,A0090080, 31/01/2019,OPS0293482,"1,155.15",N,N/A,N,N/A,
Pendle Borough Council,Operational Services,Agency Staff,1004,Emp : Agency Wages,RAPID RECRUIT LIMITED,A0090080, 10/01/2019,OPS0292865,"1,500.46",N,N/A,N,N/A,
Pendle Borough Council,Operational Services,Agency Staff,1004,Emp : Agency Wages,RAPID RECRUIT LIMITED,A0090080, 10/01/2019,OPS0292864,"1,706.80",N,N/A,N,N/A,
Pendle Borough Council,Operational Services,Agency Staff,1004,Emp : Agency Wages,RAPID RECRUIT LIMITED,A0090080, 24/01/2019,OPS0293173,"2,187.31",N,N/A,N,N/A,
Pendle Borough Council,Operational Services,Agency Staff,1004,Emp : Agency Wages,RAPID RECRUIT LIMITED,A0090080, 31/01/2019,OPS0293389,"2,311.49",N,N/A,N,N/A,
Pendle Borough Council,Operational Services,Agency Staff,1004,Emp : Agency Wages,RAPID RECRUIT LIMITED,A0090080, 10/01/2019,OPS0292899,"2,890.47",N,N/A,N,N/A,
Pendle Borough Council,Operational Services,Agency Staff,1004,Emp : Agency Wages,RAPID RECRUIT LIMITED,A0090080, 10/01/2019,OPS0292864,397.71,N,N/A,N,N/A,
Pendle Borough Council,Operational Services,Agency Staff,1004,Emp : Agency Wages,RAPID RECRUIT LIMITED,A0090080, 31/01/2019,OPS0293389,725.48,N,N/A,N,N/A,
Pendle Borough Council,Operational Services,Agency Staff,1004,Emp : Agency Wages,RAPID RECRUIT LIMITED,A0090080, 10/01/2019,OPS0292899,782.45,N,N/A,N,N/A,
Pendle Borough Council,Operational Services,Agency Staff,1004,Emp : Agency Wages,RAPID RECRUIT LIMITED,A0090080, 10/01/2019,OPS0292865,847.10,N,N/A,N,N/A,
Pendle Borough Council,Operational Services,Agency Staff,1004,Emp : Agency Wages,RAPID RECRUIT LIMITED,A0090080, 31/01/2019,OPS0293482,"1,034.35",N,N/A,N,N/A,
Pendle Borough Council,Operational Services,Agency Staff,1004,Emp : Agency Wages,RAPID RECRUIT LIMITED,A0090080, 24/01/2019,OPS0293173,"1,076.45",N,N/A,N,N/A,
Pendle Borough Council,Operational Services,Agency Staff,1004,Emp : Agency Wages,RAPID RECRUIT LIMITED,A0090080, 10/01/2019,OPS0292865,157.19,N,N/A,N,N/A,
Pendle Borough Council,Operational Services,Agency Staff,1004,Emp : Agency Wages,RAPID RECRUIT LIMITED,A0090080, 24/01/2019,OPS0293173,222.25,N,N/A,N,N/A,
Pendle Borough Council,Operational Services,Agency Staff,1004,Emp : Agency Wages,RAPID RECRUIT LIMITED,A0090080, 31/01/2019,OPS0293389,243.90,N,N/A,N,N/A,
Pendle Borough Council,Operational Services,Agency Staff,1004,Emp : Agency Wages,RAPID RECRUIT LIMITED,A0090080, 31/01/2019,OPS0293482,401.08,N,N/A,N,N/A,
Pendle Borough Council,Operational Services,Agency Staff,1004,Emp : Agency Wages,RAPID RECRUIT LIMITED,A0090080, 10/01/2019,OPS0292864,452.73,N,N/A,N,N/A,
Pendle Borough Council,Operational Services,Agency Staff,1004,Emp : Agency Wages,RAPID RECRUIT LIMITED,A0090080, 10/01/2019,OPS0292899,529.44,N,N/A,N,N/A,
Pendle Borough Council,Chief Executives Policy Unit,Supplies and Services,4705,Other Expenses,PENDLE PRIMARY ACADEMY,A0090263, 10/01/2019,COR0293004,600.00,N,N/A,N,N/A,
Pendle Borough Council,Financial Services,Transport Related Expense,3202,Diesel Oil,FUELMATE LTD,A0090265, 29/01/2019,AAS0293515,40.86,N,N/A,N,N/A,
Pendle Borough Council,Financial Services,Transport Related Expense,3202,Diesel Oil,FUELMATE LTD,A0090265, 23/01/2019,AAS0293338,46.38,N,N/A,N,N/A,
Pendle Borough Council,Financial Services,Transport Related Expense,3202,Diesel Oil,FUELMATE LTD,A0090265, 29/01/2019,AAS0293515,47.72,N,N/A,N,N/A,
Pendle Borough Council,Financial Services,Transport Related Expense,3202,Diesel Oil,FUELMATE LTD,A0090265, 23/01/2019,AAS0293338,48.40,N,N/A,N,N/A,
Pendle Borough Council,Financial Services,Transport Related Expense,3202,Diesel Oil,FUELMATE LTD,A0090265, 17/01/2019,AAS0293337,54.58,N,N/A,N,N/A,
Pendle Borough Council,Financial Services,Transport Related Expense,3202,Diesel Oil,FUELMATE LTD,A0090265, 23/01/2019,AAS0293338,55.97,N,N/A,N,N/A,
Pendle Borough Council,Financial Services,Transport Related Expense,3202,Diesel Oil,FUELMATE LTD,A0090265, 29/01/2019,AAS0293515,58.47,N,N/A,N,N/A,
Pendle Borough Council,Financial Services,Transport Related Expense,3202,Diesel Oil,FUELMATE LTD,A0090265, 29/01/2019,AAS0293515,58.94,N,N/A,N,N/A,
Pendle Borough Council,Financial Services,Transport Related Expense,3202,Diesel Oil,FUELMATE LTD,A0090265, 29/01/2019,AAS0293515,60.33,N,N/A,N,N/A,
Pendle Borough Council,Financial Services,Transport Related Expense,3202,Diesel Oil,FUELMATE LTD,A0090265, 29/01/2019,AAS0293515,62.68,N,N/A,N,N/A,
Pendle Borough Council,Financial Services,Transport Related Expense,3202,Diesel Oil,FUELMATE LTD,A0090265, 02/01/2019,AAS0293318,63.47,N,N/A,N,N/A,
Pendle Borough Council,Financial Services,Transport Related Expense,3202,Diesel Oil,FUELMATE LTD,A0090265, 23/01/2019,AAS0293338,68.49,N,N/A,N,N/A,
Pendle Borough Council,Financial Services,Transport Related Expense,3202,Diesel Oil,FUELMATE LTD,A0090265, 17/01/2019,AAS0293337,75.67,N,N/A,N,N/A,
Pendle Borough Council,Financial Services,Transport Related Expense,3202,Diesel Oil,FUELMATE LTD,A0090265, 17/01/2019,AAS0293337,94.53,N,N/A,N,N/A,
Pendle Borough Council,Financial Services,Transport Related Expense,3202,Diesel Oil,FUELMATE LTD,A0090265, 29/01/2019,AAS0293515,105.30,N,N/A,N,N/A,
Pendle Borough Council,Financial Services,Transport Related Expense,3202,Diesel Oil,FUELMATE LTD,A0090265, 17/01/2019,AAS0293337,108.01,N,N/A,N,N/A,
Pendle Borough Council,Financial Services,Transport Related Expense,3202,Diesel Oil,FUELMATE LTD,A0090265, 29/01/2019,AAS0293515,110.63,N,N/A,N,N/A,
Pendle Borough Council,Financial Services,Transport Related Expense,3202,Diesel Oil,FUELMATE LTD,A0090265, 17/01/2019,AAS0293337,113.58,N,N/A,N,N/A,
Pendle Borough Council,Financial Services,Transport Related Expense,3202,Diesel Oil,FUELMATE LTD,A0090265, 08/01/2019,AAS0293319,120.06,N,N/A,N,N/A,
Pendle Borough Council,Financial Services,Transport Related Expense,3202,Diesel Oil,FUELMATE LTD,A0090265, 02/01/2019,AAS0293318,120.55,N,N/A,N,N/A,
Pendle Borough Council,Financial Services,Transport Related Expense,3202,Diesel Oil,FUELMATE LTD,A0090265, 23/01/2019,AAS0293338,134.69,N,N/A,N,N/A,
Pendle Borough Council,Financial Services,Transport Related Expense,3202,Diesel Oil,FUELMATE LTD,A0090265, 08/01/2019,AAS0293319,161.37,N,N/A,N,N/A,
Pendle Borough Council,Financial Services,Transport Related Expense,3202,Diesel Oil,FUELMATE LTD,A0090265, 29/01/2019,AAS0293515,158.52,N,N/A,N,N/A,
Pendle Borough Council,Financial Services,Transport Related Expense,3202,Diesel Oil,FUELMATE LTD,A0090265, 23/01/2019,AAS0293338,196.83,N,N/A,N,N/A,
Pendle Borough Council,Financial Services,Transport Related Expense,3202,Diesel Oil,FUELMATE LTD,A0090265, 08/01/2019,AAS0293319,277.81,N,N/A,N,N/A,
Pendle Borough Council,Financial Services,Transport Related Expense,3202,Diesel Oil,FUELMATE LTD,A0090265, 02/01/2019,AAS0293318,334.94,N,N/A,N,N/A,
Pendle Borough Council,Financial Services,Transport Related Expense,3202,Diesel Oil,FUELMATE LTD,A0090265, 17/01/2019,AAS0293337,348.23,N,N/A,N,N/A,
Pendle Borough Council,Financial Services,Transport Related Expense,3202,Diesel Oil,FUELMATE LTD,A0090265, 29/01/2019,AAS0293515,153.06,N,N/A,N,N/A,
Pendle Borough Council,Financial Services,Transport Related Expense,3202,Diesel Oil,FUELMATE LTD,A0090265, 02/01/2019,AAS0293318,190.04,N,N/A,N,N/A,
Pendle Borough Council,Financial Services,Transport Related Expense,3202,Diesel Oil,FUELMATE LTD,A0090265, 23/01/2019,AAS0293338,194.09,N,N/A,N,N/A,
Pendle Borough Council,Financial Services,Transport Related Expense,3202,Diesel Oil,FUELMATE LTD,A0090265, 17/01/2019,AAS0293337,253.57,N,N/A,N,N/A,
Pendle Borough Council,Financial Services,Transport Related Expense,3202,Diesel Oil,FUELMATE LTD,A0090265, 08/01/2019,AAS0293319,255.35,N,N/A,N,N/A,
Pendle Borough Council,Financial Services,Transport Related Expense,3202,Diesel Oil,FUELMATE LTD,A0090265, 02/01/2019,AAS0293318,210.74,N,N/A,N,N/A,
Pendle Borough Council,Financial Services,Transport Related Expense,3202,Diesel Oil,FUELMATE LTD,A0090265, 08/01/2019,AAS0293319,234.86,N,N/A,N,N/A,
Pendle Borough Council,Financial Services,Transport Related Expense,3202,Diesel Oil,FUELMATE LTD,A0090265, 29/01/2019,AAS0293515,235.17,N,N/A,N,N/A,
Pendle Borough Council,Financial Services,Transport Related Expense,3202,Diesel Oil,FUELMATE LTD,A0090265, 23/01/2019,AAS0293338,256.88,N,N/A,N,N/A,
Pendle Borough Council,Financial Services,Transport Related Expense,3202,Diesel Oil,FUELMATE LTD,A0090265, 17/01/2019,AAS0293337,281.73,N,N/A,N,N/A,
Pendle Borough Council,Financial Services,Transport Related Expense,3202,Diesel Oil,FUELMATE LTD,A0090265, 02/01/2019,AAS0293318,90.21,N,N/A,N,N/A,
Pendle Borough Council,Financial Services,Transport Related Expense,3202,Diesel Oil,FUELMATE LTD,A0090265, 23/01/2019,AAS0293338,161.90,N,N/A,N,N/A,
Pendle Borough Council,Financial Services,Transport Related Expense,3202,Diesel Oil,FUELMATE LTD,A0090265, 08/01/2019,AAS0293319,222.18,N,N/A,N,N/A,
Pendle Borough Council,Financial Services,Transport Related Expense,3202,Diesel Oil,FUELMATE LTD,A0090265, 17/01/2019,AAS0293337,272.60,N,N/A,N,N/A,
Pendle Borough Council,Financial Services,Transport Related Expense,3202,Diesel Oil,FUELMATE LTD,A0090265, 29/01/2019,AAS0293515,288.24,N,N/A,N,N/A,
Pendle Borough Council,Financial Services,Transport Related Expense,3202,Diesel Oil,FUELMATE LTD,A0090265, 29/01/2019,AAS0293515,165.76,N,N/A,N,N/A,
Pendle Borough Council,Financial Services,Transport Related Expense,3202,Diesel Oil,FUELMATE LTD,A0090265, 23/01/2019,AAS0293338,169.89,N,N/A,N,N/A,
Pendle Borough Council,Financial Services,Transport Related Expense,3202,Diesel Oil,FUELMATE LTD,A0090265, 08/01/2019,AAS0293319,170.30,N,N/A,N,N/A,
Pendle Borough Council,Financial Services,Transport Related Expense,3202,Diesel Oil,FUELMATE LTD,A0090265, 02/01/2019,AAS0293318,270.58,N,N/A,N,N/A,
Pendle Borough Council,Financial Services,Transport Related Expense,3202,Diesel Oil,FUELMATE LTD,A0090265, 17/01/2019,AAS0293337,387.59,N,N/A,N,N/A,
Pendle Borough Council,Financial Services,Transport Related Expense,3202,Diesel Oil,FUELMATE LTD,A0090265, 08/01/2019,AAS0293319,57.70,N,N/A,N,N/A,
Pendle Borough Council,Financial Services,Transport Related Expense,3202,Diesel Oil,FUELMATE LTD,A0090265, 23/01/2019,AAS0293338,99.73,N,N/A,N,N/A,
Pendle Borough Council,Financial Services,Transport Related Expense,3202,Diesel Oil,FUELMATE LTD,A0090265, 29/01/2019,AAS0293515,169.87,N,N/A,N,N/A,
Pendle Borough Council,Financial Services,Transport Related Expense,3202,Diesel Oil,FUELMATE LTD,A0090265, 02/01/2019,AAS0293318,233.78,N,N/A,N,N/A,
Pendle Borough Council,Financial Services,Transport Related Expense,3202,Diesel Oil,FUELMATE LTD,A0090265, 17/01/2019,AAS0293337,253.42,N,N/A,N,N/A,
Pendle Borough Council,Financial Services,Transport Related Expense,3202,Diesel Oil,FUELMATE LTD,A0090265, 23/01/2019,AAS0293338,39.23,N,N/A,N,N/A,
Pendle Borough Council,Financial Services,Transport Related Expense,3202,Diesel Oil,FUELMATE LTD,A0090265, 23/01/2019,AAS0293338,59.58,N,N/A,N,N/A,
Pendle Borough Council,Financial Services,Transport Related Expense,3202,Diesel Oil,FUELMATE LTD,A0090265, 23/01/2019,AAS0293338,60.01,N,N/A,N,N/A,
Pendle Borough Council,Financial Services,Transport Related Expense,3202,Diesel Oil,FUELMATE LTD,A0090265, 29/01/2019,AAS0293515,65.87,N,N/A,N,N/A,
Pendle Borough Council,Financial Services,Transport Related Expense,3202,Diesel Oil,FUELMATE LTD,A0090265, 17/01/2019,AAS0293337,73.50,N,N/A,N,N/A,
Pendle Borough Council,Financial Services,Transport Related Expense,3202,Diesel Oil,FUELMATE LTD,A0090265, 23/01/2019,AAS0293338,86.24,N,N/A,N,N/A,
Pendle Borough Council,Financial Services,Transport Related Expense,3202,Diesel Oil,FUELMATE LTD,A0090265, 17/01/2019,AAS0293337,106.56,N,N/A,N,N/A,
Pendle Borough Council,Financial Services,Transport Related Expense,3202,Diesel Oil,FUELMATE LTD,A0090265, 02/01/2019,AAS0293318,174.40,N,N/A,N,N/A,
Pendle Borough Council,Financial Services,Transport Related Expense,3202,Diesel Oil,FUELMATE LTD,A0090265, 17/01/2019,AAS0293337,347.48,N,N/A,N,N/A,
Pendle Borough Council,Financial Services,Transport Related Expense,3202,Diesel Oil,FUELMATE LTD,A0090265, 17/01/2019,AAS0293337,73.42,N,N/A,N,N/A,
Pendle Borough Council,Financial Services,Transport Related Expense,3202,Diesel Oil,FUELMATE LTD,A0090265, 08/01/2019,AAS0293319,75.67,N,N/A,N,N/A,
Pendle Borough Council,Financial Services,Transport Related Expense,3202,Diesel Oil,FUELMATE LTD,A0090265, 29/01/2019,AAS0293515,160.50,N,N/A,N,N/A,
Pendle Borough Council,Financial Services,Transport Related Expense,3202,Diesel Oil,FUELMATE LTD,A0090265, 23/01/2019,AAS0293338,170.91,N,N/A,N,N/A,
Pendle Borough Council,Financial Services,Transport Related Expense,3202,Diesel Oil,FUELMATE LTD,A0090265, 02/01/2019,AAS0293318,180.53,N,N/A,N,N/A,
Pendle Borough Council,Financial Services,Transport Related Expense,3202,Diesel Oil,FUELMATE LTD,A0090265, 02/01/2019,AAS0293318,135.14,N,N/A,N,N/A,
Pendle Borough Council,Financial Services,Transport Related Expense,3202,Diesel Oil,FUELMATE LTD,A0090265, 23/01/2019,AAS0293338,138.31,N,N/A,N,N/A,
Pendle Borough Council,Financial Services,Transport Related Expense,3202,Diesel Oil,FUELMATE LTD,A0090265, 08/01/2019,AAS0293319,147.33,N,N/A,N,N/A,
Pendle Borough Council,Financial Services,Transport Related Expense,3202,Diesel Oil,FUELMATE LTD,A0090265, 29/01/2019,AAS0293515,152.04,N,N/A,N,N/A,
Pendle Borough Council,Financial Services,Transport Related Expense,3202,Diesel Oil,FUELMATE LTD,A0090265, 17/01/2019,AAS0293337,202.50,N,N/A,N,N/A,
Pendle Borough Council,Financial Services,Transport Related Expense,3202,Diesel Oil,FUELMATE LTD,A0090265, 23/01/2019,AAS0293338,43.24,N,N/A,N,N/A,
Pendle Borough Council,Financial Services,Transport Related Expense,3202,Diesel Oil,FUELMATE LTD,A0090265, 29/01/2019,AAS0293515,205.02,N,N/A,N,N/A,
Pendle Borough Council,Financial Services,Transport Related Expense,3202,Diesel Oil,FUELMATE LTD,A0090265, 08/01/2019,AAS0293319,218.57,N,N/A,N,N/A,
Pendle Borough Council,Financial Services,Transport Related Expense,3202,Diesel Oil,FUELMATE LTD,A0090265, 02/01/2019,AAS0293318,262.21,N,N/A,N,N/A,
Pendle Borough Council,Financial Services,Transport Related Expense,3202,Diesel Oil,FUELMATE LTD,A0090265, 17/01/2019,AAS0293337,296.96,N,N/A,N,N/A,
Pendle Borough Council,Financial Services,Transport Related Expense,3202,Diesel Oil,FUELMATE LTD,A0090265, 02/01/2019,AAS0293318,53.47,N,N/A,N,N/A,
Pendle Borough Council,Financial Services,Transport Related Expense,3202,Diesel Oil,FUELMATE LTD,A0090265, 29/01/2019,AAS0293515,97.47,N,N/A,N,N/A,
Pendle Borough Council,Financial Services,Transport Related Expense,3202,Diesel Oil,FUELMATE LTD,A0090265, 08/01/2019,AAS0293319,103.15,N,N/A,N,N/A,
Pendle Borough Council,Financial Services,Transport Related Expense,3202,Diesel Oil,FUELMATE LTD,A0090265, 17/01/2019,AAS0293337,111.23,N,N/A,N,N/A,
Pendle Borough Council,Financial Services,Transport Related Expense,3202,Diesel Oil,FUELMATE LTD,A0090265, 23/01/2019,AAS0293338,174.54,N,N/A,N,N/A,
Pendle Borough Council,Financial Services,Transport Related Expense,3202,Diesel Oil,FUELMATE LTD,A0090265, 29/01/2019,AAS0293515,176.24,N,N/A,N,N/A,
Pendle Borough Council,Financial Services,Transport Related Expense,3202,Diesel Oil,FUELMATE LTD,A0090265, 17/01/2019,AAS0293337,177.05,N,N/A,N,N/A,
Pendle Borough Council,Financial Services,Transport Related Expense,3202,Diesel Oil,FUELMATE LTD,A0090265, 08/01/2019,AAS0293319,205.86,N,N/A,N,N/A,
Pendle Borough Council,Financial Services,Transport Related Expense,3202,Diesel Oil,FUELMATE LTD,A0090265, 02/01/2019,AAS0293318,222.34,N,N/A,N,N/A,
Pendle Borough Council,Financial Services,Transport Related Expense,3202,Diesel Oil,FUELMATE LTD,A0090265, 23/01/2019,AAS0293338,142.52,N,N/A,N,N/A,
Pendle Borough Council,Financial Services,Transport Related Expense,3202,Diesel Oil,FUELMATE LTD,A0090265, 17/01/2019,AAS0293337,173.08,N,N/A,N,N/A,
Pendle Borough Council,Financial Services,Transport Related Expense,3202,Diesel Oil,FUELMATE LTD,A0090265, 29/01/2019,AAS0293515,187.23,N,N/A,N,N/A,
Pendle Borough Council,Financial Services,Transport Related Expense,3202,Diesel Oil,FUELMATE LTD,A0090265, 08/01/2019,AAS0293319,188.07,N,N/A,N,N/A,
Pendle Borough Council,Financial Services,Transport Related Expense,3202,Diesel Oil,FUELMATE LTD,A0090265, 02/01/2019,AAS0293318,231.16,N,N/A,N,N/A,
Pendle Borough Council,Financial Services,Transport Related Expense,3202,Diesel Oil,FUELMATE LTD,A0090265, 29/01/2019,AAS0293515,127.21,N,N/A,N,N/A,
Pendle Borough Council,Financial Services,Transport Related Expense,3202,Diesel Oil,FUELMATE LTD,A0090265, 23/01/2019,AAS0293338,176.52,N,N/A,N,N/A,
Pendle Borough Council,Financial Services,Transport Related Expense,3202,Diesel Oil,FUELMATE LTD,A0090265, 08/01/2019,AAS0293319,181.29,N,N/A,N,N/A,
Pendle Borough Council,Financial Services,Transport Related Expense,3202,Diesel Oil,FUELMATE LTD,A0090265, 17/01/2019,AAS0293337,213.83,N,N/A,N,N/A,
Pendle Borough Council,Financial Services,Transport Related Expense,3202,Diesel Oil,FUELMATE LTD,A0090265, 02/01/2019,AAS0293318,214.38,N,N/A,N,N/A,
Pendle Borough Council,Financial Services,Transport Related Expense,3202,Diesel Oil,FUELMATE LTD,A0090265, 29/01/2019,AAS0293515,145.90,N,N/A,N,N/A,
Pendle Borough Council,Financial Services,Transport Related Expense,3202,Diesel Oil,FUELMATE LTD,A0090265, 23/01/2019,AAS0293338,157.66,N,N/A,N,N/A,
Pendle Borough Council,Financial Services,Transport Related Expense,3202,Diesel Oil,FUELMATE LTD,A0090265, 02/01/2019,AAS0293318,165.09,N,N/A,N,N/A,
Pendle Borough Council,Financial Services,Transport Related Expense,3202,Diesel Oil,FUELMATE LTD,A0090265, 08/01/2019,AAS0293319,189.72,N,N/A,N,N/A,
Pendle Borough Council,Financial Services,Transport Related Expense,3202,Diesel Oil,FUELMATE LTD,A0090265, 17/01/2019,AAS0293337,244.44,N,N/A,N,N/A,
Pendle Borough Council,Financial Services,Transport Related Expense,3202,Diesel Oil,FUELMATE LTD,A0090265, 29/01/2019,AAS0293515,53.38,N,N/A,N,N/A,
Pendle Borough Council,Financial Services,Transport Related Expense,3202,Diesel Oil,FUELMATE LTD,A0090265, 17/01/2019,AAS0293337,54.73,N,N/A,N,N/A,
Pendle Borough Council,Financial Services,Transport Related Expense,3202,Diesel Oil,FUELMATE LTD,A0090265, 17/01/2019,AAS0293337,59.55,N,N/A,N,N/A,
Pendle Borough Council,Financial Services,Transport Related Expense,3202,Diesel Oil,FUELMATE LTD,A0090265, 29/01/2019,AAS0293515,110.46,N,N/A,N,N/A,
Pendle Borough Council,Financial Services,Transport Related Expense,3202,Diesel Oil,FUELMATE LTD,A0090265, 08/01/2019,AAS0293319,117.59,N,N/A,N,N/A,
Pendle Borough Council,Financial Services,Transport Related Expense,3202,Diesel Oil,FUELMATE LTD,A0090265, 02/01/2019,AAS0293318,147.80,N,N/A,N,N/A,
Pendle Borough Council,Financial Services,Transport Related Expense,3202,Diesel Oil,FUELMATE LTD,A0090265, 08/01/2019,AAS0293319,110.53,N,N/A,N,N/A,
Pendle Borough Council,Financial Services,Transport Related Expense,3202,Diesel Oil,FUELMATE LTD,A0090265, 17/01/2019,AAS0293337,111.35,N,N/A,N,N/A,
Pendle Borough Council,Financial Services,Transport Related Expense,3202,Diesel Oil,FUELMATE LTD,A0090265, 29/01/2019,AAS0293515,115.69,N,N/A,N,N/A,
Pendle Borough Council,Financial Services,Transport Related Expense,3202,Diesel Oil,FUELMATE LTD,A0090265, 02/01/2019,AAS0293318,123.42,N,N/A,N,N/A,
Pendle Borough Council,Financial Services,Transport Related Expense,3202,Diesel Oil,FUELMATE LTD,A0090265, 23/01/2019,AAS0293338,123.16,N,N/A,N,N/A,
Pendle Borough Council,Financial Services,Transport Related Expense,3202,Diesel Oil,FUELMATE LTD,A0090265, 29/01/2019,AAS0293515,129.01,N,N/A,N,N/A,
Pendle Borough Council,Financial Services,Transport Related Expense,3202,Diesel Oil,FUELMATE LTD,A0090265, 08/01/2019,AAS0293319,162.36,N,N/A,N,N/A,
Pendle Borough Council,Financial Services,Transport Related Expense,3202,Diesel Oil,FUELMATE LTD,A0090265, 02/01/2019,AAS0293318,218.74,N,N/A,N,N/A,
Pendle Borough Council,Financial Services,Transport Related Expense,3202,Diesel Oil,FUELMATE LTD,A0090265, 17/01/2019,AAS0293337,233.95,N,N/A,N,N/A,
Pendle Borough Council,Financial Services,Transport Related Expense,3202,Diesel Oil,FUELMATE LTD,A0090265, 23/01/2019,AAS0293338,30.21,N,N/A,N,N/A,
Pendle Borough Council,Financial Services,Transport Related Expense,3202,Diesel Oil,FUELMATE LTD,A0090265, 17/01/2019,AAS0293337,139.38,N,N/A,N,N/A,
Pendle Borough Council,Financial Services,Transport Related Expense,3202,Diesel Oil,FUELMATE LTD,A0090265, 29/01/2019,AAS0293515,147.66,N,N/A,N,N/A,
Pendle Borough Council,Financial Services,Transport Related Expense,3202,Diesel Oil,FUELMATE LTD,A0090265, 08/01/2019,AAS0293319,162.99,N,N/A,N,N/A,
Pendle Borough Council,Financial Services,Transport Related Expense,3202,Diesel Oil,FUELMATE LTD,A0090265, 02/01/2019,AAS0293318,176.48,N,N/A,N,N/A,
Pendle Borough Council,Financial Services,Transport Related Expense,3202,Diesel Oil,FUELMATE LTD,A0090265, 23/01/2019,AAS0293338,113.69,N,N/A,N,N/A,
Pendle Borough Council,Financial Services,Transport Related Expense,3202,Diesel Oil,FUELMATE LTD,A0090265, 29/01/2019,AAS0293515,153.18,N,N/A,N,N/A,
Pendle Borough Council,Financial Services,Transport Related Expense,3202,Diesel Oil,FUELMATE LTD,A0090265, 02/01/2019,AAS0293318,155.43,N,N/A,N,N/A,
Pendle Borough Council,Financial Services,Transport Related Expense,3202,Diesel Oil,FUELMATE LTD,A0090265, 08/01/2019,AAS0293319,156.99,N,N/A,N,N/A,
Pendle Borough Council,Financial Services,Transport Related Expense,3202,Diesel Oil,FUELMATE LTD,A0090265, 17/01/2019,AAS0293337,227.10,N,N/A,N,N/A,
Pendle Borough Council,Financial Services,Transport Related Expense,3202,Diesel Oil,FUELMATE LTD,A0090265, 29/01/2019,AAS0293515,131.38,N,N/A,N,N/A,
Pendle Borough Council,Financial Services,Transport Related Expense,3202,Diesel Oil,FUELMATE LTD,A0090265, 23/01/2019,AAS0293338,132.72,N,N/A,N,N/A,
Pendle Borough Council,Financial Services,Transport Related Expense,3202,Diesel Oil,FUELMATE LTD,A0090265, 08/01/2019,AAS0293319,194.64,N,N/A,N,N/A,
Pendle Borough Council,Financial Services,Transport Related Expense,3202,Diesel Oil,FUELMATE LTD,A0090265, 02/01/2019,AAS0293318,202.85,N,N/A,N,N/A,
Pendle Borough Council,Financial Services,Transport Related Expense,3202,Diesel Oil,FUELMATE LTD,A0090265, 17/01/2019,AAS0293337,222.80,N,N/A,N,N/A,
Pendle Borough Council,Financial Services,Transport Related Expense,3202,Diesel Oil,FUELMATE LTD,A0090265, 08/01/2019,AAS0293319,76.29,N,N/A,N,N/A,
Pendle Borough Council,Financial Services,Transport Related Expense,3202,Diesel Oil,FUELMATE LTD,A0090265, 08/01/2019,AAS0293319,57.52,N,N/A,N,N/A,
Pendle Borough Council,Financial Services,Transport Related Expense,3202,Diesel Oil,FUELMATE LTD,A0090265, 17/01/2019,AAS0293337,30.72,N,N/A,N,N/A,
Pendle Borough Council,Financial Services,Transport Related Expense,3202,Diesel Oil,FUELMATE LTD,A0090265, 08/01/2019,AAS0293319,46.47,N,N/A,N,N/A,
Pendle Borough Council,Financial Services,Transport Related Expense,3202,Diesel Oil,FUELMATE LTD,A0090265, 29/01/2019,AAS0293515,78.62,N,N/A,N,N/A,
Pendle Borough Council,Financial Services,Transport Related Expense,3202,Diesel Oil,FUELMATE LTD,A0090265, 17/01/2019,AAS0293337,45.18,N,N/A,N,N/A,
Pendle Borough Council,Financial Services,Transport Related Expense,3202,Diesel Oil,FUELMATE LTD,A0090265, 02/01/2019,AAS0293318,46.31,N,N/A,N,N/A,
Pendle Borough Council,Financial Services,Transport Related Expense,3202,Diesel Oil,FUELMATE LTD,A0090265, 29/01/2019,AAS0293515,72.99,N,N/A,N,N/A,
Pendle Borough Council,Financial Services,Transport Related Expense,3202,Diesel Oil,FUELMATE LTD,A0090265, 17/01/2019,AAS0293337,75.18,N,N/A,N,N/A,
Pendle Borough Council,Financial Services,Transport Related Expense,3202,Diesel Oil,FUELMATE LTD,A0090265, 02/01/2019,AAS0293318,77.95,N,N/A,N,N/A,
Pendle Borough Council,Financial Services,Transport Related Expense,3202,Diesel Oil,FUELMATE LTD,A0090265, 17/01/2019,AAS0293337,54.21,N,N/A,N,N/A,
Pendle Borough Council,Financial Services,Transport Related Expense,3202,Diesel Oil,FUELMATE LTD,A0090265, 17/01/2019,AAS0293337,55.23,N,N/A,N,N/A,
Pendle Borough Council,Financial Services,Transport Related Expense,3202,Diesel Oil,FUELMATE LTD,A0090265, 29/01/2019,AAS0293515,92.87,N,N/A,N,N/A,
Pendle Borough Council,Financial Services,Transport Related Expense,3202,Diesel Oil,FUELMATE LTD,A0090265, 08/01/2019,AAS0293319,125.48,N,N/A,N,N/A,
Pendle Borough Council,Financial Services,Transport Related Expense,3202,Diesel Oil,FUELMATE LTD,A0090265, 29/01/2019,AAS0293515,54.85,N,N/A,N,N/A,
Pendle Borough Council,Financial Services,Transport Related Expense,3202,Diesel Oil,FUELMATE LTD,A0090265, 08/01/2019,AAS0293319,56.77,N,N/A,N,N/A,
Pendle Borough Council,Financial Services,Transport Related Expense,3202,Diesel Oil,FUELMATE LTD,A0090265, 02/01/2019,AAS0293318,61.17,N,N/A,N,N/A,
Pendle Borough Council,Financial Services,Transport Related Expense,3202,Diesel Oil,FUELMATE LTD,A0090265, 17/01/2019,AAS0293337,106.59,N,N/A,N,N/A,
Pendle Borough Council,Financial Services,Transport Related Expense,3202,Diesel Oil,FUELMATE LTD,A0090265, 02/01/2019,AAS0293318,38.01,N,N/A,N,N/A,
Pendle Borough Council,Financial Services,Transport Related Expense,3202,Diesel Oil,FUELMATE LTD,A0090265, 08/01/2019,AAS0293319,53.79,N,N/A,N,N/A,
Pendle Borough Council,Financial Services,Transport Related Expense,3202,Diesel Oil,FUELMATE LTD,A0090265, 29/01/2019,AAS0293515,63.64,N,N/A,N,N/A,
Pendle Borough Council,Financial Services,Transport Related Expense,3202,Diesel Oil,FUELMATE LTD,A0090265, 17/01/2019,AAS0293337,66.25,N,N/A,N,N/A,
Pendle Borough Council,Financial Services,Transport Related Expense,3202,Diesel Oil,FUELMATE LTD,A0090265, 08/01/2019,AAS0293319,60.70,N,N/A,N,N/A,
Pendle Borough Council,Financial Services,Transport Related Expense,3202,Diesel Oil,FUELMATE LTD,A0090265, 17/01/2019,AAS0293337,62.46,N,N/A,N,N/A,
Pendle Borough Council,Financial Services,Transport Related Expense,3202,Diesel Oil,FUELMATE LTD,A0090265, 02/01/2019,AAS0293318,68.88,N,N/A,N,N/A,
Pendle Borough Council,Financial Services,Transport Related Expense,3202,Diesel Oil,FUELMATE LTD,A0090265, 23/01/2019,AAS0293338,77.05,N,N/A,N,N/A,
Pendle Borough Council,Financial Services,Transport Related Expense,3202,Diesel Oil,FUELMATE LTD,A0090265, 02/01/2019,AAS0293318,61.57,N,N/A,N,N/A,
Pendle Borough Council,Financial Services,Transport Related Expense,3202,Diesel Oil,FUELMATE LTD,A0090265, 29/01/2019,AAS0293515,26.91,N,N/A,N,N/A,
Pendle Borough Council,Financial Services,Transport Related Expense,3202,Diesel Oil,FUELMATE LTD,A0090265, 17/01/2019,AAS0293337,56.39,N,N/A,N,N/A,
Pendle Borough Council,Financial Services,Transport Related Expense,3202,Diesel Oil,FUELMATE LTD,A0090265, 17/01/2019,AAS0293337,46.93,N,N/A,N,N/A,
Pendle Borough Council,Financial Services,Transport Related Expense,3202,Diesel Oil,FUELMATE LTD,A0090265, 08/01/2019,AAS0293319,43.08,N,N/A,N,N/A,
Pendle Borough Council,Financial Services,Transport Related Expense,3202,Diesel Oil,FUELMATE LTD,A0090265, 02/01/2019,AAS0293318,60.12,N,N/A,N,N/A,
Pendle Borough Council,Financial Services,Transport Related Expense,3202,Diesel Oil,FUELMATE LTD,A0090265, 29/01/2019,AAS0293515,23.81,N,N/A,N,N/A,
Pendle Borough Council,Financial Services,Transport Related Expense,3202,Diesel Oil,FUELMATE LTD,A0090265, 02/01/2019,AAS0293318,31.62,N,N/A,N,N/A,
Pendle Borough Council,Financial Services,Transport Related Expense,3202,Diesel Oil,FUELMATE LTD,A0090265, 29/01/2019,AAS0293515,55.31,N,N/A,N,N/A,
Pendle Borough Council,Financial Services,Transport Related Expense,3202,Diesel Oil,FUELMATE LTD,A0090265, 29/01/2019,AAS0293515,87.47,N,N/A,N,N/A,
Pendle Borough Council,Financial Services,Transport Related Expense,3202,Diesel Oil,FUELMATE LTD,A0090265, 08/01/2019,AAS0293319,96.98,N,N/A,N,N/A,
Pendle Borough Council,Financial Services,Transport Related Expense,3202,Diesel Oil,FUELMATE LTD,A0090265, 23/01/2019,AAS0293338,134.04,N,N/A,N,N/A,
Pendle Borough Council,Financial Services,Transport Related Expense,3202,Diesel Oil,FUELMATE LTD,A0090265, 17/01/2019,AAS0293337,219.23,N,N/A,N,N/A,
Pendle Borough Council,Financial Services,Transport Related Expense,3202,Diesel Oil,FUELMATE LTD,A0090265, 02/01/2019,AAS0293318,223.96,N,N/A,N,N/A,
Pendle Borough Council,Financial Services,Transport Related Expense,3202,Diesel Oil,FUELMATE LTD,A0090265, 17/01/2019,AAS0293337,97.76,N,N/A,N,N/A,
Pendle Borough Council,Financial Services,Transport Related Expense,3202,Diesel Oil,FUELMATE LTD,A0090265, 29/01/2019,AAS0293515,59.93,N,N/A,N,N/A,
Pendle Borough Council,Financial Services,Transport Related Expense,3202,Diesel Oil,FUELMATE LTD,A0090265, 08/01/2019,AAS0293319,61.34,N,N/A,N,N/A,
Pendle Borough Council,Financial Services,Transport Related Expense,3202,Diesel Oil,FUELMATE LTD,A0090265, 02/01/2019,AAS0293318,61.91,N,N/A,N,N/A,
Pendle Borough Council,Financial Services,Transport Related Expense,3202,Diesel Oil,FUELMATE LTD,A0090265, 23/01/2019,AAS0293338,58.83,N,N/A,N,N/A,
Pendle Borough Council,Financial Services,Transport Related Expense,3202,Diesel Oil,FUELMATE LTD,A0090265, 08/01/2019,AAS0293319,46.16,N,N/A,N,N/A,
Pendle Borough Council,Financial Services,Transport Related Expense,3202,Diesel Oil,FUELMATE LTD,A0090265, 29/01/2019,AAS0293515,60.46,N,N/A,N,N/A,
Pendle Borough Council,Financial Services,Transport Related Expense,3202,Diesel Oil,FUELMATE LTD,A0090265, 02/01/2019,AAS0293318,61.99,N,N/A,N,N/A,
Pendle Borough Council,Financial Services,Transport Related Expense,3202,Diesel Oil,FUELMATE LTD,A0090265, 29/01/2019,AAS0293515,62.62,N,N/A,N,N/A,
Pendle Borough Council,Financial Services,Transport Related Expense,3202,Diesel Oil,FUELMATE LTD,A0090265, 17/01/2019,AAS0293337,67.86,N,N/A,N,N/A,
Pendle Borough Council,Financial Services,Transport Related Expense,3202,Diesel Oil,FUELMATE LTD,A0090265, 17/01/2019,AAS0293337,51.02,N,N/A,N,N/A,
Pendle Borough Council,Financial Services,Transport Related Expense,3202,Diesel Oil,FUELMATE LTD,A0090265, 08/01/2019,AAS0293319,63.31,N,N/A,N,N/A,
Pendle Borough Council,Financial Services,Transport Related Expense,3202,Diesel Oil,FUELMATE LTD,A0090265, 17/01/2019,AAS0293337,61.55,N,N/A,N,N/A,
Pendle Borough Council,Financial Services,Transport Related Expense,3202,Diesel Oil,FUELMATE LTD,A0090265, 29/01/2019,AAS0293515,58.31,N,N/A,N,N/A,
Pendle Borough Council,Financial Services,Transport Related Expense,3202,Diesel Oil,FUELMATE LTD,A0090265, 02/01/2019,AAS0293318,67.70,N,N/A,N,N/A,
Pendle Borough Council,Financial Services,Transport Related Expense,3202,Diesel Oil,FUELMATE LTD,A0090265, 29/01/2019,AAS0293515,42.66,N,N/A,N,N/A,
Pendle Borough Council,Financial Services,Transport Related Expense,3202,Diesel Oil,FUELMATE LTD,A0090265, 29/01/2019,AAS0293515,30.92,N,N/A,N,N/A,
Pendle Borough Council,Financial Services,Transport Related Expense,3202,Diesel Oil,FUELMATE LTD,A0090265, 02/01/2019,AAS0293318,62.97,N,N/A,N,N/A,
Pendle Borough Council,Financial Services,Transport Related Expense,3202,Diesel Oil,FUELMATE LTD,A0090265, 29/01/2019,AAS0293515,78.02,N,N/A,N,N/A,
Pendle Borough Council,Financial Services,Transport Related Expense,3202,Diesel Oil,FUELMATE LTD,A0090265, 17/01/2019,AAS0293337,84.06,N,N/A,N,N/A,
Pendle Borough Council,Democratic & Legal Services,,9303,Other Income : Non-VATable,BARNOLDSWICK TOWN COUNCIL,A0090352, 17/01/2019,DAL0293113,"1,250.00",N,N/A,N,N/A,
Pendle Borough Council,Engineering & Special Projects,Capital Costs,CD14,Capital : Payments,BARNOLDSWICK TOWN COUNCIL,A0090352, 24/01/2019,HED0293165,995.00,N,N/A,N,N/A,
Pendle Borough Council,Engineering & Special Projects,Premises Related Expense,2101,Grounds : R & M : Day to Day : Routine,GREEN CLEAN RESTORATION,A0090368, 24/01/2019,HED0293177,480.00,N,N/A,N,N/A,
Pendle Borough Council,Housing Regeneration Services,Premises Related Expense,2101,Grounds : R & M : Day to Day : Routine,GREEN CLEAN RESTORATION,A0090368, 24/01/2019,HMR0293205,"3,430.00",N,N/A,N,N/A,
Pendle Borough Council,Economic Development & Tourism,Supplies and Services,4739,Grants/Contributions,ENTERPRISE LANCASHIRE LIMITED,A0090413, 24/01/2019,REG0293263,425.00,N,N/A,N,N/A,
Pendle Borough Council,Human Resources,Supplies and Services,4601,Seminars etc All Costs,THE ATHENA PROGRAMME LIMITED,A0090474, 17/01/2019,PER0293088,644.00,N,N/A,N,N/A,
Pendle Borough Council,Housing Regeneration Services,Supplies and Services,4739,Grants/Contributions,LOVE LOCAL SOLUTIONS LIMITED,A0090486, 10/01/2019,HMR0292956,625.00,N,N/A,N,N/A,
Pendle Borough Council,Democratic & Legal Services,Supplies and Services,4401,Consultants Fees,GOV TV LIMITED (T/A GOV RADIO),A0090499, 10/01/2019,DAL0293000,"3,675.00",N,N/A,N,N/A,
Pendle Borough Council,Financial Services,Supplies and Services,4305,Newspapers & Periodicals,LANCASHIRE BUSINESS VIEW,A0090521, 02/01/2019,AAS0293306,2.50,N,N/A,N,N/A,
Pendle Borough Council,Revenues Services,Supplies and Services,4401,Consultants Fees,PS&P LTD,A0090720, 10/01/2019,TRE0292964,27.40,N,N/A,N,N/A,
Pendle Borough Council,Revenues Services,Supplies and Services,4401,Consultants Fees,PS&P LTD,A0090720, 10/01/2019,TRE0292963,140.97,N,N/A,N,N/A,
Pendle Borough Council,Human Resources,Supplies and Services,4002,EFM : Office and computer equipment,ESSENTRA COMPONENTS LIMITED,A0090741, 24/01/2019,PER0293220,42.50,N,N/A,N,N/A,
Pendle Borough Council,Parks & Recreation Services,Transport Related Expense,3105,Tprt : Repairs : General,SUPER AUTO SAVER,A0090951, 31/01/2019,PCO0293427,66.50,N,N/A,N,N/A,
Pendle Borough Council,Financial Services,Premises Related Expense,2202,Gas,ORSTED SALES (UK) LIMITED,A0090977, 21/01/2019,AAS0293342,35.84,N,N/A,N,N/A,
Pendle Borough Council,Financial Services,Premises Related Expense,2202,Gas,ORSTED SALES (UK) LIMITED,A0090977, 21/01/2019,AAS0293343,55.08,N,N/A,N,N/A,
Pendle Borough Council,Financial Services,Premises Related Expense,2202,Gas,ORSTED SALES (UK) LIMITED,A0090977, 21/01/2019,AAS0293351,201.23,N,N/A,N,N/A,
Pendle Borough Council,Financial Services,Premises Related Expense,2202,Gas,ORSTED SALES (UK) LIMITED,A0090977, 25/01/2019,AAS0293566,223.21,N,N/A,N,N/A,
Pendle Borough Council,Financial Services,Premises Related Expense,2202,Gas,ORSTED SALES (UK) LIMITED,A0090977, 21/01/2019,AAS0293354,161.08,N,N/A,N,N/A,
Pendle Borough Council,Financial Services,Premises Related Expense,2202,Gas,ORSTED SALES (UK) LIMITED,A0090977, 21/01/2019,AAS0293350,183.61,N,N/A,N,N/A,
Pendle Borough Council,Financial Services,Premises Related Expense,2202,Gas,ORSTED SALES (UK) LIMITED,A0090977, 21/01/2019,AAS0293355,80.72,N,N/A,N,N/A,
Pendle Borough Council,Financial Services,Premises Related Expense,2202,Gas,ORSTED SALES (UK) LIMITED,A0090977, 21/01/2019,AAS0293339,300.99,N,N/A,N,N/A,
Pendle Borough Council,Financial Services,Premises Related Expense,2202,Gas,ORSTED SALES (UK) LIMITED,A0090977, 21/01/2019,AAS0293344,62.82,N,N/A,N,N/A,
Pendle Borough Council,Financial Services,Premises Related Expense,2202,Gas,ORSTED SALES (UK) LIMITED,A0090977, 21/01/2019,AAS0293341,92.49,N,N/A,N,N/A,
Pendle Borough Council,Financial Services,Premises Related Expense,2202,Gas,ORSTED SALES (UK) LIMITED,A0090977, 21/01/2019,AAS0293340,35.77,N,N/A,N,N/A,
Pendle Borough Council,Financial Services,Premises Related Expense,2202,Gas,ORSTED SALES (UK) LIMITED,A0090977, 21/01/2019,AAS0293347,347.07,N,N/A,N,N/A,
Pendle Borough Council,Financial Services,Premises Related Expense,2202,Gas,ORSTED SALES (UK) LIMITED,A0090977, 21/01/2019,AAS0293348,"1,570.05",N,N/A,N,N/A,
Pendle Borough Council,Operational Services,,PJ01,Stock : Purchases,REDACTED - PERSONAL DATA,A0091009, 24/01/2019,OPS0293219,16.67,N,N/A,N,N/A,
Pendle Borough Council,Parks & Recreation Services,Premises Related Expense,2101,Grounds : R & M : Day to Day : Routine,FRESH FIRE AND SECURITY LIMITED,A0091168, 31/01/2019,PCO0293462,525.00,N,N/A,N,N/A,
Pendle Borough Council,Planning & Building Control,Supplies and Services,4003,EFM : Other Equipment,RESTORE DATASHRED,A0091201, 17/01/2019,PBC0293053,104.30,N,N/A,N,N/A,
Pendle Borough Council,Information Services,Supplies and Services,4002,EFM : Office and computer equipment,SOFTCAT,A0091298, 10/01/2019,ITS4005963,-442.85,N,N/A,N,N/A,
Pendle Borough Council,Information Services,Supplies and Services,4401,Consultants Fees,SOFTCAT,A0091298, 10/01/2019,ITS0291986,353.23,N,N/A,N,N/A,
Pendle Borough Council,Housing Regeneration Services,Transfer Payments,6104,Storage & Homelessness prevention,FOUR STAR TAXIS,A0091315, 10/01/2019,HMR0292839,105.00,N,N/A,N,N/A,
Pendle Borough Council,Housing Regeneration Services,Transfer Payments,6104,Storage & Homelessness prevention,FOUR STAR TAXIS,A0091315, 10/01/2019,HMR0293007,135.00,N,N/A,N,N/A,
Pendle Borough Council,Housing Regeneration Services,Capital Costs,CD14,Capital : Payments,G O`NEILL PLUMBING SERVICES LIMITED,A0091356, 24/01/2019,HMR0293203,"1,700.00",N,N/A,N,N/A,
Pendle Borough Council,Engineering & Special Projects,Premises Related Expense,2101,Grounds : R & M : Day to Day : Routine,BUCKET AND SPADE MEDIA LIMITED,A0091371, 10/01/2019,HED0292843,150.00,N,N/A,N,N/A,
Pendle Borough Council,Engineering & Special Projects,Premises Related Expense,2101,Grounds : R & M : Day to Day : Routine,BUCKET AND SPADE MEDIA LIMITED,A0091371, 10/01/2019,HED0292843,150.00,N,N/A,N,N/A,
Pendle Borough Council,Parks & Recreation Services,Premises Related Expense,2101,Grounds : R & M : Day to Day : Routine,CMS TREE SERVICES,A0091372, 10/01/2019,PCO0292861,200.00,N,N/A,N,N/A,
Pendle Borough Council,Parks & Recreation Services,Premises Related Expense,2101,Grounds : R & M : Day to Day : Routine,CMS TREE SERVICES,A0091372, 10/01/2019,PCO0292862,260.00,N,N/A,N,N/A,
Pendle Borough Council,Operational Services,Transport Related Expense,3202,Diesel Oil,WCF LIMITED,A0091385, 24/01/2019,OPS0293286,"1,627.50",N,N/A,N,N/A,
Pendle Borough Council,Engineering & Special Projects,Premises Related Expense,2101,Grounds : R & M : Day to Day : Routine,MARTINS COUNTRYSIDE CONTRACTING LIMITED,A0091415, 17/01/2019,HED0293114,225.00,N,N/A,N,N/A,
Pendle Borough Council,Engineering & Special Projects,Premises Related Expense,2101,Grounds : R & M : Day to Day : Routine,MARTINS COUNTRYSIDE CONTRACTING LIMITED,A0091415, 17/01/2019,HED0293116,105.00,N,N/A,N,N/A,
Pendle Borough Council,Engineering & Special Projects,Premises Related Expense,2101,Grounds : R & M : Day to Day : Routine,MARTINS COUNTRYSIDE CONTRACTING LIMITED,A0091415, 17/01/2019,HED0293115,213.00,N,N/A,N,N/A,
Pendle Borough Council,Planning & Building Control,,9303,Other Income : Non-VATable,REDACTED - PERSONAL DATA,A0091450, 10/01/2019,PBC0292889,33.25,N,N/A,N,N/A,
Pendle Borough Council,Planning & Building Control,,9303,Other Income : Non-VATable,REDACTED - PERSONAL DATA,A0091450, 10/01/2019,PBC0293001,33.25,N,N/A,N,N/A,
Pendle Borough Council,Planning & Building Control,,9302,Fees Income : Non-VATable,PORTALPLANQUEST LIMITED,A0091554, 17/01/2019,PBC0293022,468.00,N,N/A,N,N/A,
Pendle Borough Council,Economic Development & Tourism,Supplies and Services,4705,Other Expenses,JOE HESKETH,A0091582, 17/01/2019,REG0293075,"3,052.40",N,N/A,N,N/A,
Pendle Borough Council,Operational Services,Agency Staff,1004,Emp : Agency Wages,NW RECRUITMENT SERVICES LIMITED,A0091588, 10/01/2019,OPS0292897,244.11,N,N/A,N,N/A,
Pendle Borough Council,Operational Services,Agency Staff,1004,Emp : Agency Wages,NW RECRUITMENT SERVICES LIMITED,A0091588, 24/01/2019,OPS0293174,118.03,N,N/A,N,N/A,
Pendle Borough Council,Operational Services,Agency Staff,1004,Emp : Agency Wages,NW RECRUITMENT SERVICES LIMITED,A0091588, 31/01/2019,OPS0293413,174.36,N,N/A,N,N/A,
Pendle Borough Council,Operational Services,Agency Staff,1004,Emp : Agency Wages,NW RECRUITMENT SERVICES LIMITED,A0091588, 24/01/2019,OPS0293285,236.06,N,N/A,N,N/A,
Pendle Borough Council,Parks & Recreation Services,Agency Staff,1020,Emp : Salaries & Wages,NW RECRUITMENT SERVICES LIMITED,A0091588, 24/01/2019,PCO0293191,83.20,N,N/A,N,N/A,
Pendle Borough Council,Parks & Recreation Services,Agency Staff,1020,Emp : Salaries & Wages,NW RECRUITMENT SERVICES LIMITED,A0091588, 31/01/2019,PCO0293422,88.40,N,N/A,N,N/A,
Pendle Borough Council,Parks & Recreation Services,Agency Staff,1020,Emp : Salaries & Wages,NW RECRUITMENT SERVICES LIMITED,A0091588, 24/01/2019,PCO0293281,104.00,N,N/A,N,N/A,
Pendle Borough Council,Economic Development & Tourism,Supplies and Services,4739,Grants/Contributions,THOUGHT FOR FOOD,A0091590, 10/01/2019,REG0293009,375.00,N,N/A,N,N/A,
Pendle Borough Council,Democratic & Legal Services,Supplies and Services,4705,Other Expenses,Shout Promotions Limited,A0091593, 24/01/2019,DAL0293274,400.00,N,N/A,N,N/A,
Pendle Borough Council,Engineering & Special Projects,Capital Costs,CD14,Capital : Payments,GF SECTIONAL BUILDINGS,A0091598, 17/01/2019,HED0293028,"2,399.17",N,N/A,N,N/A,
Pendle Borough Council,Operational Services,Transport Related Expense,3601,Tprt : Annual Hire Charge,GO PLANT FLEET SERVICES LIMITED,A0091600, 24/01/2019,OPS0293294,745.00,N,N/A,N,N/A,
Pendle Borough Council,Operational Services,Transport Related Expense,3601,Tprt : Annual Hire Charge,GO PLANT FLEET SERVICES LIMITED,A0091600, 24/01/2019,OPS0293296,745.00,N,N/A,N,N/A,
Pendle Borough Council,Operational Services,Transport Related Expense,3601,Tprt : Annual Hire Charge,GO PLANT FLEET SERVICES LIMITED,A0091600, 17/01/2019,OPS0293110,"1,085.00",N,N/A,N,N/A,
Pendle Borough Council,Operational Services,Transport Related Expense,3601,Tprt : Annual Hire Charge,GO PLANT FLEET SERVICES LIMITED,A0091600, 17/01/2019,OPS0293111,"1,085.00",N,N/A,N,N/A,
Pendle Borough Council,Economic Development & Tourism,Supplies and Services,4739,Grants/Contributions,GREENFIELD ARTS CENTRE,A0091610, 24/01/2019,REG0293264,600.00,N,N/A,N,N/A,
Pendle Borough Council,Planning & Building Control,,9303,Other Income : Non-VATable,REDACTED - PERSONAL DATA,A0091624, 10/01/2019,PBC0293002,261.55,N,N/A,N,N/A,
Pendle Borough Council,Economic Development & Tourism,Supplies and Services,4739,Grants/Contributions,EADIES KITCHEN,A0091626, 10/01/2019,REG0293010,"1,957.00",N,N/A,N,N/A,
Pendle Borough Council,Planning & Building Control,,9202,Fees Income : VATable,IDOX - IAPPLY REFUNDS,A0091627, 17/01/2019,PBC0293054,49.17,N,N/A,N,N/A,
Pendle Borough Council,Housing Regeneration Services,Capital Costs,CD14,Capital : Payments,RHEA PROJECTS LIMITED,A0091628, 17/01/2019,HMR0293127,"1,311.45",N,N/A,N,N/A,
Pendle Borough Council,Financial Services,Agency Staff,1004,Emp : Agency Wages,CERVO TRANSPORT LIMITED,A0091629, 31/01/2019,AAS4005994,-93.20,N,N/A,N,N/A,
Pendle Borough Council,Financial Services,Agency Staff,1004,Emp : Agency Wages,CERVO TRANSPORT LIMITED,A0091629, 31/01/2019,AAS4005995,-93.20,N,N/A,N,N/A,
Pendle Borough Council,Financial Services,Agency Staff,1004,Emp : Agency Wages,CERVO TRANSPORT LIMITED,A0091629, 31/01/2019,AAS4005994,93.20,N,N/A,N,N/A,
Pendle Borough Council,Financial Services,Agency Staff,1004,Emp : Agency Wages,CERVO TRANSPORT LIMITED,A0091629, 31/01/2019,AAS4005995,93.20,N,N/A,N,N/A,
Pendle Borough Council,Operational Services,Agency Staff,1004,Emp : Agency Wages,CERVO TRANSPORT LIMITED,A0091629, 31/01/2019,OPS0293478,93.20,N,N/A,N,N/A,
Pendle Borough Council,Operational Services,Agency Staff,1004,Emp : Agency Wages,CERVO TRANSPORT LIMITED,A0091629, 31/01/2019,OPS0293479,93.20,N,N/A,N,N/A,
Pendle Borough Council,Financial Services,,9303,Other Income : Non-VATable,REDACTED - PERSONAL DATA,A0091631, 24/01/2019,AAS0293218,366.64,N,N/A,N,N/A,
Pendle Borough Council,Chief Executives Policy Unit,Supplies and Services,4705,Other Expenses,REHANA ILYAS,A0091632, 24/01/2019,COR0293267,"2,300.00",N,N/A,N,N/A,
Pendle Borough Council,Financial Services,Supplies and Services,4705,Other Expenses,BIG LOCAL TRUST (BIG),A0091636, 24/01/2019,AAS0293320,"38,967.84",N,N/A,N,N/A,
Pendle Borough Council,Operational Services,Supplies and Services,4007,Sub-Contractors,PRAXIS 42,A0091637, 31/01/2019,OPS0293391,"3,500.00",N,N/A,N,N/A,
